Cogmind - Beta 14 @@@ ROGUE MODE // 2024.08.18 @ 16:14:06 Player: szymekc Result: Destroyed by MAIN.C with Omega Cannon Performance ------------- Evolutions (9) 4500 Regions Visited (35) 7000 Robots Destroyed (312) 1560 Value Destroyed (15801) 15801 Prototype IDs (87) 1740 Alien Tech Used (13) 2600 Bonus (25940) 25940 TOTAL SCORE: 59141 Bonus ------- Triggered High Security 500 High Alert Combat Kills 3718 Follower Combat Kills 204 Entered Garrisons 400 Met Data Miner 300 Met Imprinter 300 Acquired ECA 300 Met Zhirov 300 Met Warlord at Base 500 MAIN.C Attacked Warlord 500 Used Core Reset Matrix 3000 Met Warlord at Research 2000 Invited to Help at Command 2000 Destroyed MAIN.C Guards 500 Met MAIN.C 5000 Destroyed MAIN.C Shell 5000 Met Warlord at Command 2000 Friendly Fire -582 Cogmind --------- Core Integrity 0/1600 Matter 202/300 Energy 1440/1440 System Corruption 0% Temperature Cool (5) Movement Immobile (Siege) Location -1/Command Parts ------- > --- POWER (3) -------- Zero-point Reactor Vortex Chain Reactor > --- PROPULSION (8) --- Experimental Biometal Heavy Treads Enhanced Armored Heavy Treads Cooled Antigrav System Cooled Antigrav System Antigrav Array > --- UTILITY (12) ----- Experimental Energy Well Experimental Armor Integrity Analyzer SHELL Armor Spacefold Activator > --- WEAPON (2) ------- Graviton Cannon Graviton Cannon > --- INVENTORY (5) ---- High-powered Transdimensional Reconstructor Subatomic Replicator Enhanced Nova Cannon Core Cannon Peak State ------------ > --- POWER ------------ Micro Antimatter Reactor Light Quantum Reactor Improved Quantum Reactor > --- PROPULSION ------- Cooled Antigrav System Combat Antigrav System Combat Antigrav System Combat Antigrav System Combat Antigrav System Antigrav Array Cooled Linear Gravjet > --- UTILITY ---------- Large Storage Unit Experimental Armor Integrity Analyzer Quantum Capacitor SHELL Armor System Mapper Quantum Router Spacefold Activator Microwarp Drive > --- WEAPON ----------- Vortex Shotgun Enhanced Nova Cannon > --- INVENTORY -------- Improved Gyrokinetic Inverter Antigrav Array Experimental Energy Well Weapon Mount Experimental Shock Absorption System Antimissile System Improved Hacking Suite Improved Hacking Suite Improved System Shield High-powered Transdimensional Reconstructor Subatomic Replicator Vortex Shotgun Core Cannon [Rating: 241] Favorites ----------- Power Light Quantum Reactor Engine Ion Engine Power Core Micro Nuclear Core Reactor Light Quantum Reactor Propulsion Light Treads Treads Light Treads Leg Improved Aluminum Leg Wheel Wheel Hover Unit Combat Antigrav System Flight Unit Cooled Nuclear Pulse Thruster Utility Medium Storage Unit Device Seismic Detector Storage Medium Storage Unit Processor Advanced Melee Analysis Suite Hackware Quantum Router Protection Experimental Utility Shielding Artifact Microwarp Drive Weapon Makeshift Spear Energy Gun Advanced Beam Rifle Energy Cannon Enhanced Nova Cannon Ballistic Gun Battle Rifle Ballistic Cannon Light Cannon Launcher Rocket Launcher Special Weapon Mining Laser Impact Weapon Heavy Hammer Slashing Weapon Nanosword Piercing Weapon Makeshift Spear Build | -11 -10 -10 -10 -8 -8 -8 -7 -7 -7 -7 -6 -6 -6 -6 -6 -6 -6 -5 -5 -5 -5 -5 -4 -4 -4 -4 -4 -3 -3 -3 -3 -2 -2 -1 -1 ------- Run | Yrd Mat Min Sub Mat Sto Gar Fac Low Low Zio Pro Fac Gar Fac Low Low Dat Pro Fac Upp Upp Zhi Pro Fac Upp Upp War Pro Res Qua Sec Res Tes Acc Com Slots Evolved 18 | . . . . 4 . . 2 . . . . 2 . . . . . . 2 . . . . 2 . . . . 2 . . 2 . 2 . Power 2 | . . . . . . . . . . . . . . . . . . . . . . . . . . . . . 1 . . 1 . . . Propulsion 6 | . . . . 2 . . 1 . . . . 1 . . . . . . . . . . . 1 . . . . . . . 1 . . . Utility 10 | . . . . 2 . . 1 . . . . 1 . . . . . . 2 . . . . 1 . . . . 1 . . . . 2 . Weapon . | . . . . . . . . . . . . . . . . . . . . . . . . . . . . . . . . . . . . Parts Attached 618 | 4 10 6 31 29 33 19 26 6 4 5 1 41 10 43 1 3 6 4 45 . . 8 . 8 3 1 21 1 12 26 14 91 32 29 45 Power 57 | . 1 . 3 2 1 1 4 . 1 . . 1 . 7 . . . . 4 . . . . 1 . . 1 . 3 1 1 9 4 3 9 Engine 19 | . 1 . 3 2 1 1 3 . . . . . . 5 . . . . 2 . . . . . . . . . . . . . 1 . . Core 6 | . . . . . . . 1 . 1 . . 1 . 1 . . . . 2 . . . . . . . . . . . . . . . . Reactor 32 | . . . . . . . . . . . . . . 1 . . . . . . . . . 1 . . 1 . 3 1 1 9 3 3 9 Propulsion 121 | 2 1 . 3 8 11 6 7 . 1 . . 7 . 10 . . . . 12 . . 4 . 2 . . 3 . 2 10 3 8 3 10 8 Treads 28 | 2 1 . 3 4 9 6 1 . . . . . . . . . . . . . . . . . . . . . . . . . . . 2 Leg 3 | . . . . 2 1 . . . . . . . . . . . . . . . . . . . . . . . . . . . . . . Wheel 1 | . . . . 1 . . . . . . . . . . . . . . . . . . . . . . . . . . . . . . . Hover 40 | . . . . . . . . . . . . . . 2 . . . . . . . . . . . . 1 . . 7 3 8 3 10 6 Flight 49 | . . . . 1 1 . 6 . 1 . . 7 . 8 . . . . 12 . . 4 . 2 . . 2 . 2 3 . . . . . Utility 293 | 1 1 4 9 5 6 . 11 4 2 5 1 26 5 21 . 3 5 1 22 . . 4 . 5 3 1 9 1 5 12 10 66 17 14 14 Device 166 | 1 . 4 4 . 2 . 2 2 . 3 1 18 3 18 . 3 4 1 4 . . 1 . 5 3 1 4 1 3 7 3 43 13 4 8 Storage 21 | . 1 . 2 2 . . 1 . 1 . . . . . . . . . 1 . . 1 . . . . . . . 1 1 7 1 . 2 Processor 21 | . . . . 2 2 . 4 . . . . 2 1 . . . . . 2 . . . . . . . 1 . . . . 7 . . . Hackware 17 | . . . . . . . 1 . . . . 2 . 3 . . . . 3 . . . . . . . . . 1 1 1 . . 4 1 Protection 54 | . . . 3 1 2 . 3 2 1 2 . 4 1 . . . 1 . 12 . . 2 . . . . 4 . 1 3 2 7 2 . 1 Artifact 14 | . . . . . . . . . . . . . . . . . . . . . . . . . . . . . . . 3 2 1 6 2 Weapon 147 | 1 7 2 16 14 15 12 4 2 . . . 7 5 5 1 . 1 3 7 . . . . . . . 8 . 2 3 . 8 8 2 14 Energy Gun 27 | . . . 1 7 6 6 . . . . . . . . . . . . . . . . . . . . 2 . . . . 1 2 . 2 Energy Cannon 34 | . 1 . . 1 . . 1 . . . . 3 2 . . . . . . . . . . . . . 2 . 1 2 . 3 6 2 10 Ballistic Gun 27 | 1 3 . 9 6 4 . 2 . . . . . . . . . . . . . . . . . . . 2 . . . . . . . . Ballistic Cannon 7 | . 1 1 1 . 1 . . . . . . . . . . . . . . . . . . . . . . . 1 . . . . . 2 Launcher 17 | . 2 1 1 . 3 5 . . . . . . 1 1 . . . 1 1 . . . . . . . 1 . . . . . . . . Special Weapon 4 | . . . 4 . . . . . . . . . . . . . . . . . . . . . . . . . . . . . . . . Impact Weapon 2 | . . . . . 1 . . . . . . . . . . . . . 1 . . . . . . . . . . . . . . . . Slashing Weapon 7 | . . . . . . 1 . . . . . . . . 1 . . . 1 . . . . . . . . . . 1 . 3 . . . Piercing Weapon 22 | . . . . . . . 1 2 . . . 4 2 4 . . 1 2 4 . . . . . . . 1 . . . . 1 . . . Special Melee Weapon . | . . . . . . . . . . . . . . . . . . . . . . . . . . . . . . . . . . . . Unidentified Prototypes 59 | . . 1 . 5 2 . 1 . . . . 2 . 4 . . . . 5 . . 2 . 1 . . 7 . 3 2 . 11 5 1 7 Parts Lost 55 | . . 1 4 7 6 1 1 . . . . . 1 2 . . 2 . 2 . . . . . . . . . 1 2 3 1 2 1 18 Power 10 | . . . 1 . 1 1 1 . . . . . . 2 . . . . . . . . . . . . . . . . . . 1 . 3 Propulsion 17 | . . . 2 5 2 . . . . . . . . . . . 1 . 2 . . . . . . . . . . . . . . 1 4 Utility 22 | . . 1 1 1 2 . . . . . . . 1 . . . . . . . . . . . . . . . 1 2 3 1 1 . 8 Weapon 6 | . . . . 1 1 . . . . . . . . . . . 1 . . . . . . . . . . . . . . . . . 3 Highest Loss Streak 13 | . . 1 1 3 2 1 1 . . . . . 1 1 . . 1 . 1 . . . . . . . . . 1 2 3 1 1 1 13 To Critical Strikes 1 | . . . . . . . . . . . . . . . . . . . . . . . . . . . . . . . . . . . 1 Average Slot Usage (%) 93 | . 100 100 99 93 92 99 89 100 100 99 100 99 95 97 99 93 91 85 85 88 88 87 88 88 89 89 92 89 87 95 95 86 80 76 74 Engine 5 | . 14 14 13 9 5 8 4 . . . . . . 4 6 6 6 6 3 . . . . . . . . . . . . . . . . Reactor 2 | . . . . . . . . . . . . . . . . . . . . . . . . 4 5 5 5 5 4 7 9 12 11 12 11 Treads 12 | . 28 28 27 17 28 36 . . . . . . . . . . . . . . . . . . . . . . . . . . . . . Hover 6 | . . . . . . . . . . . . . . . . . . . . . . . . . . . . . . 27 33 29 29 25 22 Flight 11 | . . . . 1 3 . 33 38 38 38 38 39 40 40 40 40 40 33 25 23 23 26 29 31 31 31 31 31 28 4 . . . . . Device 10 | . 14 14 12 9 9 9 1 3 7 7 10 7 8 8 6 6 5 12 2 . . . 5 9 10 10 10 10 9 19 16 17 12 6 11 Storage 8 | . 14 14 14 9 9 9 7 7 7 7 7 6 6 6 6 6 6 6 5 5 5 5 5 5 5 5 5 5 4 4 4 4 4 4 5 Processor 6 | . . . . 7 12 9 22 19 15 15 15 14 16 15 13 13 13 13 11 11 11 10 5 5 5 5 5 5 3 . . . 4 4 4 Hackware 5 | . . . . . . . . . . . . 8 . 5 13 13 9 6 17 17 17 17 17 15 15 15 15 15 17 13 13 8 4 10 8 Protection 4 | . . . 1 7 4 9 2 7 7 6 3 1 6 1 . . 2 . 7 11 11 10 11 10 10 10 9 10 9 8 2 2 4 4 3 Energy Gun 3 | . . . 5 5 9 15 . . . . . . . . . . . . . . . . . . . . 1 . . . . . 3 1 . Energy Cannon 2 | . 1 14 . 2 . . . . . . . . . . . . . . . . . . . . . . . . 3 2 4 5 4 4 6 Ballistic Gun 4 | . 23 . 18 10 7 . 4 1 . . . . . . . . . . . . . . . . . . 1 . . . . . . . . Ballistic Cannon 1 | . 1 13 2 . . . . . . . . . . . . . . . . . . . . . . . . . . . . . . . . Piercing Weapon 3 | . . . . . . . 6 13 15 15 15 12 8 11 12 . 2 4 6 11 11 8 5 5 5 5 5 5 4 1 . . . . . Peak Build Rating 241 | 7 8 14 14 35 39 31 49 48 45 48 46 67 70 74 68 71 73 66 109 109 109 111 107 120 117 117 136 125 150 151 162 197 214 241 226 Average Rating 76 | 6 7 9 11 25 32 30 41 46 44 44 45 59 65 67 67 70 69 64 99 108 108 106 107 117 117 117 121 119 136 142 154 180 201 220 205 On Entrance 83 | 6 7 8 9 12 33 29 30 48 45 44 45 46 67 65 68 68 71 63 65 109 109 109 107 107 117 117 117 125 119 128 147 159 192 209 221 Naked Turns . | . . . . . . . . . . . . . . . . . . . . . . . . . . . . . . . . . . . . Heaviest Build 129 | 15 32 32 94 105 105 97 97 24 24 24 24 30 31 34 25 28 37 31 38 38 38 38 36 40 40 40 41 33 47 66 66 125 127 128 129 Greatest Support 175 | 40 40 40 40 60 82 80 100 25 25 25 25 34 35 34 28 28 34 31 38 44 38 38 49 58 58 58 43 58 62 108 108 143 127 127 175 Greatest Overweight (x) 10 | . . . 2 10 4 1 . . . . . . 10 1 . . 1 . 1 . . 1 . . . . . . . 1 . 1 1 1 1 Average Overweight (x) . | . . . . 5 1 1 . . . . . . . . . . . . . . . . . . . . . . . . . . . . . Largest Inventory Capacity 25 | 8 15 15 25 25 25 25 25 10 10 10 10 10 10 10 10 10 10 10 10 10 10 10 10 10 10 10 10 10 10 10 25 10 15 15 15 Average Capacity 14 | 8 14 15 17 19 25 25 10 10 10 10 10 10 10 10 10 10 10 10 10 10 10 10 10 10 10 10 10 10 10 10 10 10 11 15 15 Most Carried 25 | 8 15 15 25 25 25 25 24 10 10 10 10 10 10 10 10 10 10 10 10 10 10 10 10 10 10 10 10 10 10 10 10 10 13 15 15 Average Carried 14 | 5 12 14 16 17 23 24 10 9 9 9 10 9 9 9 10 10 9 9 9 9 9 9 10 9 10 10 9 10 9 9 8 9 10 13 13 Final Capacity 25 | 8 15 15 15 25 25 25 10 10 10 10 10 10 10 10 10 10 10 10 10 10 10 10 10 10 10 10 10 10 10 10 10 10 15 15 5 Final Carried 25 | 6 15 15 15 23 24 25 10 10 10 10 10 10 10 10 10 10 10 9 10 10 10 10 10 10 10 10 10 10 9 9 7 10 12 13 5 Class Distribution -------------------- 31% | Mutant 14% | Wizard-Sprinter 13% | Sprinter 12% | Alien-Mutant 12% | Scavenger-Mutant 6% | Hacker-Mutant 3% | Hacker-Sprinter 3% | Derelict-Sprinter Dominant Class ---------------- Mutant | -10/Materials Mutant | -10/Mines Mutant | -10/Subcaves Mutant | -8/Materials Mutant | -8/Storage Scavenger-Mutant | -8/Garrison Sprinter | -7/Factory Sprinter | -7/Lower Caves Sprinter | -7/Lower Caves Sprinter | -7/Zion Sprinter | -6/Proximity Caves Derelict-Sprinter | -6/Factory Sprinter | -6/Garrison Sprinter | -6/Factory Hacker-Sprinter | -6/Lower Caves Hacker-Sprinter | -6/Lower Caves Sprinter | -6/Data Miner Sprinter | -5/Proximity Caves Wizard-Sprinter | -5/Factory Wizard-Sprinter | -5/Upper Caves Wizard-Sprinter | -5/Upper Caves Wizard-Sprinter | -5/Zhirov Wizard-Sprinter | -4/Proximity Caves Wizard-Sprinter | -4/Factory Wizard-Sprinter | -4/Upper Caves Wizard-Sprinter | -4/Upper Caves Wizard-Sprinter | -4/Warlord Wizard-Sprinter | -3/Proximity Caves Wizard-Sprinter | -3/Research Hacker-Mutant | -3/Quarantine Wizard-Mutant | -3/Section 7 Alien-Mutant | -2/Research Alien-Mutant | -2/Testing Alien-Mutant | -1/Access Hacker-Mutant | -1/Command Resources | -11 -10 -10 -10 -8 -8 -8 -7 -7 -7 -7 -6 -6 -6 -6 -6 -6 -6 -5 -5 -5 -5 -5 -4 -4 -4 -4 -4 -3 -3 -3 -3 -2 -2 -1 -1 ----------- Run | Yrd Mat Min Sub Mat Sto Gar Fac Low Low Zio Pro Fac Gar Fac Low Low Dat Pro Fac Upp Upp Zhi Pro Fac Upp Upp War Pro Res Qua Sec Res Tes Acc Com Matter Collected 8072 | 294 472 181 427 639 500 456 263 80 29 70 . 360 156 587 10 30 45 25 453 61 35 . 2 136 . 67 233 . 57 331 97 1049 315 221 391 Remotely . | . . . . . . . . . . . . . . . . . . . . . . . . . . . . . . . . . . . . Salvage Created 16317 | 131 779 188 447 1305 1662 819 596 . 43 . 52 663 201 749 27 . 120 70 390 . . . . 158 . . . . 105 528 286 704 1092 1066 4136 Parts 749 | 11 46 10 23 69 88 41 28 . 4 . 4 30 4 33 3 . 7 2 27 . . . . 4 . . . . 7 32 16 17 41 61 141 Haulers Intercepted 25 | . 2 . . 3 4 . 2 . . . . 4 . 3 . . . . 2 . . . . 1 . . . . . 1 . 2 1 . . Recyclers Shooed 7 | 1 . . . 1 . . 3 . . . . . . 1 . . . . . . . . . . . . . . . . . . . . 1 Parts Field Recycled . | . . . . . . . . . . . . . . . . . . . . . . . . . . . . . . . . . . . . Retrieved Matter . | . . . . . . . . . . . . . . . . . . . . . . . . . . . . . . . . . . . . Parts Self-Destructed 25 | . . . 6 . . . . . 3 2 9 . . . . . . 5 . . . . . . . . . . . . . . . . . Prevented 6 | . . . . . . . . 1 . . 2 . . . . . . 2 . . . . . . . . . 1 . . . . . . . Kills | -11 -10 -10 -10 -8 -8 -8 -7 -7 -7 -7 -6 -6 -6 -6 -6 -6 -6 -5 -5 -5 -5 -5 -4 -4 -4 -4 -4 -3 -3 -3 -3 -2 -2 -1 -1 ------- Run | Yrd Mat Min Sub Mat Sto Gar Fac Low Low Zio Pro Fac Gar Fac Low Low Dat Pro Fac Upp Upp Zhi Pro Fac Upp Upp War Pro Res Qua Sec Res Tes Acc Com Combat Hostiles Destroyed 217 | . 16 6 14 19 27 27 5 . 1 . 1 3 4 4 . . 1 1 4 . . . . . . . . . . 6 3 5 14 15 41 Melee 25 | . . . . . . . 5 . 1 . 1 3 1 4 . . 1 . 1 . . . . . . . . . . 6 2 . . . . Guns 72 | . 14 . 11 17 15 14 . . . . . . . . . . . . . . . . . . . . . . . . . . . 1 . Cannons 55 | . . 4 3 . . . . . . . . . . . . . . . . . . . . . . . . . . . 1 3 13 14 17 AOE 38 | . 2 2 . 2 9 12 . . . . . . 3 . . . . 1 3 . . . . . . . . . . . . . . . 4 Classes Destroyed 22 | 2 4 1 2 3 3 2 . . . . . . . . 1 . . 1 . . . . . . . . . . . . . 2 . . 1 Worker 16 | . . 1 . 4 2 . . . . . . . . . . . . . . . . . . . . . . . . . . 3 3 2 1 Builder 7 | . . . . 1 2 . . . . . . 1 . . . . . . . . . . . . . . . . . 1 1 . 1 . . Tunneler 3 | 3 . . . . . . . . . . . . . . . . . . . . . . . . . . . . . . . . . . . Hauler 25 | . 2 . . 3 4 . 2 . . . . 4 . 3 . . . . 2 . . . . 1 . . . . . 1 . 2 1 . . Recycler 9 | 1 1 . . 1 1 . 4 . . . . . . 1 . . . . . . . . . . . . . . . . . . . . . Operator 6 | . . . . . 1 . . . . . . . . . . . . . . . . . . . . . . . 1 1 1 . . 1 1 Drone 1 | . . . . . . . . . . . . . . . . . . 1 . . . . . . . . . . . . . . . . . Watcher 25 | . 2 . . 2 1 . 1 . . . . 3 . 4 . . . . 4 . . . . 1 . . . . 2 . . . 1 2 2 Swarmer 28 | . 3 . 4 3 . 6 3 . . . . . . . . . . . 3 . . . . . . . . . . . . . . 4 2 Saboteur 1 | . . . . . . . . . . . . . . . . . . . . . . . . . . . . . . . . . . . 1 Grunt 89 | . 13 6 1 10 17 9 . . . . . 1 3 3 . . . . . . . . . . . . . . . 1 . . 3 2 20 Brawler 3 | . . . . . 1 1 . . . . . . . . . . . . . . . . . . . . . . . . . . . . 1 Duelist 5 | . . . . 1 . 1 . . . . . . . . . . . . . . . . . . . . . . . . . . . . 3 Sentry 29 | . . . 1 4 7 7 2 . . . . . 1 . . . . . . . . . . . . . . . . . 1 1 . . 5 Demolisher 2 | . . . . . 1 . . . . . . . . . . . . . . . . . . . . . . . . . . 1 . . . Specialist 2 | . . . . . . 2 . . . . . . . . . . . . . . . . . . . . . . . . . . . . . Hunter 16 | . . . . 1 2 . . . . . 1 . . . . . . . . . . . . . . . . . . . . 1 9 . 2 Programmer 27 | . . . . . . 1 . . 1 . . 2 . 1 . . . . 1 . . . . . . . . . . 5 2 . 2 9 3 M Guard 2 | . . . . . . . . . . . . . . . . . . . . . . . . . . . . . . . . . . . 2 Enhanced Grunt 1 | . . . . . . . . . . . . . . . . . 1 . . . . . . . . . . . . . . . . . . Combat Programmer 1 | . . . . . . . . . . . . . . . . . . . . . . . . . . . . . . . . . . . 1 Striker 2 | . . . . . . . . . . . . . . . . . . . . . . . . . . . . . . . . 2 . . . Subdweller 8 | . . . 8 . . . . . . . . . . . . . . . . . . . . . . . . . . . . . . . . Tinkerer 1 | . . . . . . . . . . . . . . . 1 . . . . . . . . . . . . . . . . . . . . Wasp 1 | . . . . . . . . . . . . . . . . . . . . . . . . . . . . . . . . . . . 1 Mutant 1 | . . . . . . . . . . . . . . . . . . . . . . . . . . . . . . . . 1 . . . Best Kill Streak 13 | 3 4 2 4 13 9 4 7 . 1 . 1 2 3 5 . . 1 1 3 . . . . 1 . . . . 2 3 2 3 5 4 9 Combat Bots Only 10 | . 4 2 4 5 9 4 4 . 1 . 1 1 3 2 . . 1 1 3 . . . . . . . . . . 3 2 2 5 4 10 Max Kills in Single Turn 3 | 1 1 1 1 2 3 3 1 . 1 . 1 1 2 1 1 . 1 1 3 . . . . 1 . . . . 1 1 1 1 2 3 2 Gunslinging 1 | . . . . . . 1 . . . . . . . . . . . . . . . . . . . . . . . . . . . . . Exploded 3 | . 1 1 . 1 2 3 . . . . . . 2 . . . . 1 3 . . . . . . . . . . . . . . . 1 Melee 1 | . . . . . . . 1 . 1 . 1 1 1 1 . . 1 . 1 . . . . . . . . . . 1 1 . . . . Uniques/NPCs Destroyed 2 | . . . . . . . . . . . . . . . . . 1 . . . . . . . . . . . . . . . . . 1 Data Miner (-6/Data Miner) MAIN.C Shell (-1/Command) Combat | -11 -10 -10 -10 -8 -8 -8 -7 -7 -7 -7 -6 -6 -6 -6 -6 -6 -6 -5 -5 -5 -5 -5 -4 -4 -4 -4 -4 -3 -3 -3 -3 -2 -2 -1 -1 -------- Run | Yrd Mat Min Sub Mat Sto Gar Fac Low Low Zio Pro Fac Gar Fac Low Low Dat Pro Fac Upp Upp Zhi Pro Fac Upp Upp War Pro Res Qua Sec Res Tes Acc Com Hostile Shots Fired 1749 | . 51 21 70 80 122 95 65 . 12 . 3 17 125 22 . 4 6 . 68 3 . . 30 28 20 9 4 . 44 93 94 16 155 160 332 Missed 777 | . 15 5 23 22 28 31 26 . 3 . 2 11 72 8 . 2 1 . 37 1 . . 15 16 14 9 4 . 25 57 47 4 88 77 134 Intercepted 20 | . . . . . . . . . . . . . . . . . . . . . . . . . . . . . . . . . . . 20 Damage Taken 22698 | . 417 253 883 1038 1604 859 360 . 145 . 15 91 439 331 . 40 232 . 958 34 . . 205 285 91 . . . 303 811 1838 512 1711 1963 7280 Core 3939 | . 77 30 138 94 179 129 141 . 30 . 15 31 90 53 . 20 50 . 165 34 . . 18 14 . . . . . 30 954 78 239 289 1041 Absorbed by Shields 151 | . . . . . . 38 . . . . . . 30 . . . . . . . . . . . . . . . . . . 64 . . 19 Reduced by Siege Mode 19 | . . . . . . . . . . . . . . . . . . . . . . . . . . . . . . . . . . . 19 Redirected to Shielding 485 | . . . . . . . . . . . . . . . . . . . 125 . . . 17 70 . . . . 114 159 . . . . . Regen/Repaired (Parts) 2763 | . . . . . . . . . . 101 . . . . . . . . 125 . . . . . . . 13 . . 133 . . 736 768 887 Core Remaining (%) 59 | 100 . . 2 . . 26 . . . . 73 . . . . . . 71 . . . . 78 . . . . 98 . . 14 . 69 . . Volleys Fired 844 | 9 59 16 66 64 72 63 . . . . . 6 13 . . . . 2 1 . . . . . . . 5 . 3 3 6 22 90 98 246 Largest 2 | 2 2 2 2 2 2 2 . . . . . 1 1 . . . . 1 1 . . . . . . . 1 . 1 1 1 2 1 1 2 Hottest 300 | 40 40 95 100 110 122 122 . . . . . 30 43 . . . . 43 43 . . . . . . . 90 . 90 90 90 240 300 120 300 Shots Fired 1129 | 18 116 28 113 121 135 99 . . . . . 6 13 . . . . 2 1 . . . . . . . 5 . 3 3 6 23 90 98 249 Gun 546 | 18 113 . 83 110 125 79 . . . . . . . . . . . . . . . . . . . . . . . . . . . 3 15 Cannon 517 | . . 24 13 11 1 . . . . . . 6 3 . . . . . . . . . . . . . 5 . 3 3 6 23 90 95 234 Launcher 51 | . 3 4 2 . 9 20 . . . . . . 10 . . . . 2 1 . . . . . . . . . . . . . . . . Special 15 | . . . 15 . . . . . . . . . . . . . . . . . . . . . . . . . . . . . . . . Kinetic 320 | 18 113 12 63 69 40 . . . . . . . . . . . . . . . . . . . . . . . . . . . . . 5 Thermal 520 | . . 12 48 14 14 79 . . . . . 6 3 . . . . . . . . . . . . . 5 . 3 3 6 23 90 95 119 Explosive 51 | . 3 4 2 . 9 20 . . . . . . 10 . . . . 2 1 . . . . . . . . . . . . . . . . Electromagnetic 220 | . . . . 38 72 . . . . . . . . . . . . . . . . . . . . . . . . . . . . . 110 Entropic 18 | . . . . . . . . . . . . . . . . . . . . . . . . . . . . . . . . . . 3 15 Robot Hit Streak 31 | 9 17 4 14 14 24 26 . . . . . . 3 . . . . . . . . . . . . . . . . . 4 13 17 29 31 Robot Miss Streak 6 | 1 3 2 2 4 5 2 . . . . . . 2 . . . . . . . . . . . . . . . . . . 1 3 6 6 Penetration Max 1 | . . . . . . . . . . . . . . . . . . . . . . . . . . . . . . . . . 1 . 1 Secondary Targets 6 | . . . . 2 3 1 . . . . . . . . . . . . . . . . . . . . . . . . . . . . . Max Gunslinging Chain 1 | . . . . 1 1 1 . . . . . . . . . . . . . . . . . . . . . . . . . . . . . Capacitor 430 | . . . . . . . . . . . . . . . . . . . . . . . . . . . . . . . . 21 90 81 238 Shots Hit Robots 972 | 14 84 18 69 93 108 44 33 . 6 . 3 27 7 37 1 . 5 1 17 . . . . 5 . . . . 8 27 21 28 56 57 203 Core Hits 535 | 5 42 10 24 57 70 46 12 . 2 . 1 11 13 13 1 . 4 . 9 . . . . 3 . . . . 3 8 7 6 25 24 139 Critical Kills 11 | 1 . . 1 . . . . . . . . . . . . . . . . . . . . . . . . . . . . 3 6 . . Critical Parts Destroyed 18 | . 1 . 1 . . . . . . . . . . . . . . . . . . . . . . . . . . . . . 6 . 10 Critical Strikes 62 | 1 1 1 7 1 3 3 2 . . . 1 2 1 4 . . 1 . 1 . . . . . . . . . . 3 1 4 12 . 13 Burn 6 | . . . . 1 2 3 . . . . . . . . . . . . . . . . . . . . . . . . . . . . . Meltdown 6 | . . . . . . . . . . . . . . . . . . . . . . . . . . . . . . . . 3 3 . . Destroy 28 | 1 1 . 7 . . . . . . . . . . . . . . . . . . . . . . . . . . . . . 9 . 10 Blast 3 | . . 1 . . 1 . . . . . . . . . . . . . . . . . . . . . . . . . . . . . 1 Sever 6 | . . . . . . . . . . . . . . . . . 1 . . . . . . . . . . . . 3 1 1 . . . Impale 11 | . . . . . . . 2 . . . 1 2 1 4 . . . . 1 . . . . . . . . . . . . . . . . Detonate 2 | . . . . . . . . . . . . . . . . . . . . . . . . . . . . . . . . . . . 2 Melee Attacks 460 | . . . . . 1 15 44 3 8 2 4 53 20 83 3 . 20 2 42 2 . . 7 31 3 . 4 . 24 41 34 14 . . . Impact 1 | . . . . . 1 . . . . . . . . . . . . . . . . . . . . . . . . . . . . . . Slashing 115 | . . . . . . 15 . . . . . . . . 1 . 16 . 2 . . . . . . . . . . 33 34 14 . . . Piercing 344 | . . . . . . . 44 3 8 2 4 53 20 83 2 . 4 2 40 2 . . 7 31 3 . 4 . 24 8 . . . . . Sneak Attacks 34 | . . . . . . . 8 . . . . 6 . 4 1 . 1 . 2 . . . . 2 . . . . 2 2 1 5 . . . Combat Hostiles . | . . . . . . . . . . . . . . . . . . . . . . . . . . . . . . . . . . . . Follow-up Attacks 11 | . . . . . . . . . . . 1 5 . 2 . . . . . . . . . . . . . . . 3 . . . . . Damage Inflicted 42508 | 181 1218 516 1290 2111 2927 2484 1567 . 179 . 121 1337 919 1727 75 . 308 232 1119 . . . . 306 . . . . 586 1702 1281 1754 4287 2970 11311 Guns 7797 | 181 1121 . 1065 1606 2021 875 . . . . . . . . . . . . . . . . . . . . . . . . . . . 86 842 Cannons 16716 | . . 299 225 193 19 . . . . . . . . . . . . . . . . . . . . . . . . . 48 644 4036 2701 8551 Explosions 6437 | . 51 184 . 300 870 1609 . . . . . . 717 . . . . 146 208 . . . . . . . . . . . . . 251 183 1918 Melee 11350 | . . . . . . . 1567 . 179 . 121 1337 202 1727 75 . 308 86 911 . . . . 306 . . . . 486 1702 1233 1110 . . . Ramming 208 | . 46 33 . 12 17 . . . . . . . . . . . . . . . . . . . . . . . 100 . . . . . . Kinetic 3870 | 181 1121 160 744 911 561 . . . . . . . . . . . . . . . . . . . . . . . . . . . . . 192 Thermal 16681 | . . 139 546 553 365 875 . . . . . . . . . . . . . . . . . . . . . . . . 48 644 4036 2701 6774 Explosive 3871 | . 51 184 . . 705 1609 . . . . . . 717 . . . . 146 208 . . . . . . . . . . . . . 251 . . Electromagnetic 5600 | . . . . 635 1279 . . . . . . . . . . . . . . . . . . . . . . . . . . . . 183 3503 Impact . | . . . . . . . . . . . . . . . . . . . . . . . . . . . . . . . . . . . . Slashing 4196 | . . . . . . . . . . . . . . . . . 236 . . . . . . . . . . . . 1617 1233 1110 . . . Piercing 7154 | . . . . . . . 1567 . 179 . 121 1337 202 1727 75 . 72 86 911 . . . . 306 . . . . 486 85 . . . . . Entropic 928 | . . . . . . . . . . . . . . . . . . . . . . . . . . . . . . . . . . 86 842 Highest Corruption 6 | . 4 4 4 . . 1 . . 4 4 . 1 1 3 . . . . 6 6 6 6 6 5 5 5 5 . 2 5 5 . . . . Average Corruption 3 | . 3 4 4 . . 1 . . 3 4 . 1 1 2 . . . . 2 6 6 6 6 5 5 5 5 . 2 2 4 . . . . Corruption Purged 14 | . . . . . . . . . . . . 1 . 3 . . . . 5 . . . . . . . . . . 5 . . . . . Corruption Blocked . | . . . . . . . . . . . . . . . . . . . . . . . . . . . . . . . . . . . . Effects 184 | . 27 23 62 . . 18 . . 3 1 . . . 9 . . . . 14 4 1 2 5 5 2 . . . 1 1 6 . . . . Message Errors 46 | . 5 8 15 . . 3 . . . . . . . . . . . . 5 1 . 1 4 1 1 . . . 1 . 1 . . . . Matter Fused 41 | . 7 5 11 . . 6 . . 1 . . . . 2 . . . . 2 2 1 . 1 1 . . . . . . 2 . . . . Heat Flow Errors 25 | . 6 4 5 . . 1 . . . . . . . 2 . . . . 4 1 . . . 1 . . . . . . 1 . . . . Energy Discharges 27 | . 3 3 12 . . 1 . . . 1 . . . 4 . . . . 1 . . 1 . 1 . . . . . . . . . . . Parts Rejected 1 | . . . . . . 1 . . . . . . . . . . . . . . . . . . . . . . . . . . . . . Parts Fused 3 | . 1 . 1 . . . . . . . . . . 1 . . . . . . . . . . . . . . . . . . . . . Data Loss (minor) 18 | . 1 . 12 . . 1 . . 1 . . . . . . . . . 2 . . . . . . . . . . 1 . . . . . Data Loss (major) 11 | . 1 2 3 . . 2 . . 1 . . . . . . . . . . . . . . . . . . . . . 2 . . . . Misfires 6 | . 2 . 2 . . 2 . . . . . . . . . . . . . . . . . . . . . . . . . . . . . Alerts 3 | . . 1 . . . . . . . . . . . . . . . . . . . . . 1 1 . . . . . . . . . . Weapon Failures 3 | . 1 . 1 . . 1 . . . . . . . . . . . . . . . . . . . . . . . . . . . . . Overload Shots . | . . . . . . . . . . . . . . . . . . . . . . . . . . . . . . . . . . . . Overflow Damage 2256 | . . 9 . 29 . 4 88 . 22 . . 93 . 186 . . 11 113 80 . . . . 28 . . . . 4 274 101 345 468 148 253 Projectiles 761 | . . . . . . . . . . . . . . . . . . . . . . . . . . . . . . . 33 1 468 148 111 Explosions 217 | . . . . 29 . 4 . . . . . . . . . . . 42 . . . . . . . . . . . . . . . . 142 Melee 1278 | . . 9 . . . . 88 . 22 . . 93 . 186 . . 11 71 80 . . . . 28 . . . . 4 274 68 344 . . . Knockbacks 5 | . 1 3 . . . . . . . . . . . . . . . . . . . . . . . . . . . . . . . . 1 Impact 1 | . 1 . . . . . . . . . . . . . . . . . . . . . . . . . . . . . . . . . . Kinetic 4 | . . 3 . . . . . . . . . . . . . . . . . . . . . . . . . . . . . . . . 1 Secondary . | . . . . . . . . . . . . . . . . . . . . . . . . . . . . . . . . . . . . Self-Inflicted Damage 443 | . . 38 . 63 41 17 . . . . . . . . . . . . . . . . . . . . . . 100 . . . 121 . 63 Shots 9 | . . 1 . 2 2 1 . . . . . . . . . . . . . . . . . . . . . . . . . . 1 . 2 Rammed 19 | . 10 5 . 3 1 . . . . . . . . . . . . . . . . . . . . . . . . . . . . . . Targets Rammed 22 | . 10 6 . 4 2 . . . . . . . . . . . . . . . . . . . . . . . . . . . . . . Kicked . | . . . . . . . . . . . . . . . . . . . . . . . . . . . . . . . . . . . . Crushed 3 | . . 1 . 1 1 . . . . . . . . . . . . . . . . . . . . . . . . . . . . . . Highest Temperature 352 | . 244 257 249 352 338 198 65 105 79 120 75 99 102 230 1 11 61 38 269 125 . . 287 223 248 216 104 88 160 . 126 181 181 178 178 Average Temperature 81 | . 81 116 50 77 97 69 17 34 27 35 30 18 48 30 1 1 16 6 99 59 . . 109 110 151 129 57 68 41 . 31 67 112 107 136 Received Heat Transfer 2746 | . 222 123 183 432 567 234 78 . 9 . . . 129 90 . 18 . . 45 9 . . . 67 9 . . . 30 30 73 14 72 99 213 Effects 2 | . . . . . 1 . . . . . . . . . . . . . 1 . . . . . . . . . . . . . . . . Energy Bleed 2 | . . . . . 1 . . . . . . . . . . . . . 1 . . . . . . . . . . . . . . . . Siege Activations 1 | . . . . . . . . . . . . . . . . . . . . . . . . . . . . . . . . . . . 1 Total Turns 3 | . . . . . . . . . . . . . . . . . . . . . . . . . . . . . . . . . . . 3 Longest Duration 3 | . . . . . . . . . . . . . . . . . . . . . . . . . . . . . . . . . . . 3 Robots Corrupted 24 | . . . . . 4 . . . . . . . . . . . . . . . . . . . . . . . . . . . . . 20 Combat Hostiles 23 | . . . . . 3 . . . . . . . . . . . . . . . . . . . . . . . . . . . . . 20 Parts Fried 59 | . . . . 4 12 . . . . . . . . . . . . . . . . . . . . . . . . . . . . 1 42 Impact Corruptions 1 | . . 1 . . . . . . . . . . . . . . . . . . . . . . . . . . . . . . . . . Robots Melted 7 | . . . . . . 1 . . . . . . . . . . . . . . . . . . . . . . . . . 3 3 . . Combat Hostiles 4 | . . . . . . 1 . . . . . . . . . . . . . . . . . . . . . . . . . 2 1 . . Parts Melted 32 | . . 1 3 . 7 5 . . . . . . . . . . . . . . . . . . . . . . . . . 4 9 3 . Heat Transferred 11867 | . . 296 723 894 668 1739 . . . . . . . . . . . . . . . . . . . . . . . . . 555 1887 2072 3033 Parts Sabotaged . | . . . . . . . . . . . . . . . . . . . . . . . . . . . . . . . . . . . . Parts Stolen . | . . . . . . . . . . . . . . . . . . . . . . . . . . . . . . . . . . . . Parts Stripped . | . . . . . . . . . . . . . . . . . . . . . . . . . . . . . . . . . . . . Power Chain Reactions 13 | . . . . 4 2 . . . . . . . . . . . . . . . . . . . . . . . . . . . . . 7 Alert | -11 -10 -10 -10 -8 -8 -8 -7 -7 -7 -7 -6 -6 -6 -6 -6 -6 -6 -5 -5 -5 -5 -5 -4 -4 -4 -4 -4 -3 -3 -3 -3 -2 -2 -1 -1 ------- Run | Yrd Mat Min Sub Mat Sto Gar Fac Low Low Zio Pro Fac Gar Fac Low Low Dat Pro Fac Upp Upp Zhi Pro Fac Upp Upp War Pro Res Qua Sec Res Tes Acc Com Peak Influence 1827 | 20 315 147 . 357 654 1319 1008 . . . . 218 854 669 . . . . 648 . . . . 271 . . . . 228 272 434 276 871 1312 1827 Initial 839 | . 13 31 . . 150 70 692 . . . . 60 48 448 . . . . 306 . . . . 84 . . . . 159 128 119 216 . 522 839 Average 379 | 8 149 48 . 105 310 763 852 . . . . 83 499 426 . . . . 192 . . . . 68 . . . . 95 154 184 40 449 821 1246 Maximum Alert Level 5 | . 1 . . 1 2 4 3 . . . . 1 3 2 . . . . 2 . . . . 1 . . . . 1 1 2 1 3 4 5 Low Security (%) 49 | 100 73 100 . 80 47 5 . . . . . 91 11 7 . . . . 71 . . . . 87 . . . . 94 72 59 96 22 . . Level 1 13 | . 26 . . 19 13 14 . . . . . 8 13 38 . . . . 10 . . . . 12 . . . . 5 27 36 3 17 . . Level 2 16 | . . . . . 38 20 16 . . . . . 61 54 . . . . 18 . . . . . . . . . . . 3 . 50 37 . Level 3 11 | . . . . . . 28 83 . . . . . 13 . . . . . . . . . . . . . . . . . . . 9 40 40 Level 4 7 | . . . . . . 31 . . . . . . . . . . . . . . . . . . . . . . . . . . . 21 36 Level 5 1 | . . . . . . . . . . . . . . . . . . . . . . . . . . . . . . . . . . . 18 High Security . | . . . . . . . . . . . . . . . . . . . . . . . . . . . . . . . . . . . 4 Max Security . | . . . . . . . . . . . . . . . . . . . . . . . . . . . . . . . . . . . . Squads Dispatched 63 | . 3 . . 1 5 . 2 . . . . 5 . 6 . . . . 7 . . . . 3 . . . . 3 2 5 . 5 7 9 Investigation 22 | . 2 . . 1 2 . 1 . . . . 1 . 3 . . . . 6 . . . . 2 . . . . 1 . . . 1 1 1 Extermination 12 | . . . . . . . . . . . . 3 . 1 . . . . 1 . . . . . . . . . . 1 1 . 1 2 2 Reinforcement 20 | . 1 . . . 1 . 1 . . . . 1 . 2 . . . . . . . . . 1 . . . . 2 1 4 . 3 3 . Assault 8 | . . . . . 1 . . . . . . . . . . . . . . . . . . . . . . . . . . . . 1 6 Garrison 1 | . . . . . 1 . . . . . . . . . . . . . . . . . . . . . . . . . . . . . . Intercept . | . . . . . . . . . . . . . . . . . . . . . . . . . . . . . . . . . . . . Searches Triggered 2 | . . . . . . . . . . . . . . 1 . . . . . . . . . . . . . . . . . . . 1 . Construction Impeded 1 | . . . . . 1 . . . . . . . . . . . . . . . . . . . . . . . . . . . . . . Haulers Reinforced 8 | . . . . . . . 1 . . . . 1 . 2 . . . . . . . . . . . . . . 1 1 . . 1 1 . Active Scanning Responses . | . . . . . . . . . . . . . . . . . . . . . . . . . . . . . . . . . . . . Cargo Convoy Interrupts . | . . . . . . . . . . . . . . . . . . . . . . . . . . . . . . . . . . . . Stealth | -11 -10 -10 -10 -8 -8 -8 -7 -7 -7 -7 -6 -6 -6 -6 -6 -6 -6 -5 -5 -5 -5 -5 -4 -4 -4 -4 -4 -3 -3 -3 -3 -2 -2 -1 -1 --------- Run | Yrd Mat Min Sub Mat Sto Gar Fac Low Low Zio Pro Fac Gar Fac Low Low Dat Pro Fac Upp Upp Zhi Pro Fac Upp Upp War Pro Res Qua Sec Res Tes Acc Com Distress Signals 36 | . 5 . . 2 . . 1 . . . . 1 . . . . . . 1 . . . . 5 . . . . 1 3 . 4 4 2 7 Communications Jammed 22 | . . . . . . . . . . . . . . . . . . . . . . . . . . . . . . 16 6 . . . . Distress Signals 22 | . . . . . . . . . . . . . . . . . . . . . . . . . . . . . . 16 6 . . . . Times Spotted 741 | . 34 6 18 32 40 25 14 2 8 . 4 20 34 31 . 3 4 3 51 12 . . 23 29 13 8 7 2 16 19 34 16 34 61 138 Peak Tracking Total 74 | . 6 2 6 5 7 3 6 5 7 . 3 5 19 5 . 3 3 2 16 7 . . 14 9 7 4 5 1 10 6 10 4 11 12 74 Tactical Retreats 83 | . 2 . 1 3 1 . 3 . 4 . . 4 4 8 . . . . 13 1 . . 3 7 3 1 . 1 3 1 5 . 4 7 4 Traps | -11 -10 -10 -10 -8 -8 -8 -7 -7 -7 -7 -6 -6 -6 -6 -6 -6 -6 -5 -5 -5 -5 -5 -4 -4 -4 -4 -4 -3 -3 -3 -3 -2 -2 -1 -1 ------- Run | Yrd Mat Min Sub Mat Sto Gar Fac Low Low Zio Pro Fac Gar Fac Low Low Dat Pro Fac Upp Upp Zhi Pro Fac Upp Upp War Pro Res Qua Sec Res Tes Acc Com Traps Triggered 33 | . 2 . . 1 . 10 . . . . . . 9 . . . . . 6 . . . . 1 . . . . . . . . 2 2 . Indirectly . | . . . . . . . . . . . . . . . . . . . . . . . . . . . . . . . . . . . . Trap Hack Attempts . | . . . . . . . . . . . . . . . . . . . . . . . . . . . . . . . . . . . . Triggered . | . . . . . . . . . . . . . . . . . . . . . . . . . . . . . . . . . . . . Disarmed 4 | . . . . . . . . . . . . . . . . . . . . . . . . 4 . . . . . . . . . . . Reprogrammed 1 | . . . . . . . . . . . . . . . . . . . . . . . . . . . . . 1 . . . . . . Reused . | . . . . . . . . . . . . . . . . . . . . . . . . . . . . . . . . . . . . Traps Extracted . | . . . . . . . . . . . . . . . . . . . . . . . . . . . . . . . . . . . . Installed 1 | . . . . . . . . . 1 . . . . . . . . . . . . . . . . . . . . . . . . . . Triggered 13 | . . . . . . . . 2 . . 3 1 . . . . . . . . . . . . . . 5 1 . . . . . . 1 Machines | -11 -10 -10 -10 -8 -8 -8 -7 -7 -7 -7 -6 -6 -6 -6 -6 -6 -6 -5 -5 -5 -5 -5 -4 -4 -4 -4 -4 -3 -3 -3 -3 -2 -2 -1 -1 ---------- Run | Yrd Mat Min Sub Mat Sto Gar Fac Low Low Zio Pro Fac Gar Fac Low Low Dat Pro Fac Upp Upp Zhi Pro Fac Upp Upp War Pro Res Qua Sec Res Tes Acc Com Machines Disabled 39 | . . . . 1 3 6 . . . . . . 7 . . . 1 . . . . . 1 . 1 . 1 . . 4 7 . 4 3 . Max in Single Turn 2 | . . . . 1 1 1 . . . . . . 1 . . . 1 . . . . . 1 . 1 . 1 . . 1 1 . 2 1 . Garrison Access 12 | . . . . . . . . . . . . . . . . . . . 4 . . . . 2 . . . . 3 . . 2 . 1 . Garrison Relay 10 | . . . . . . 5 . . . . . . 5 . . . . . . . . . . . . . . . . . . . . . . Machines Repaired . | . . . . . . . . . . . . . . . . . . . . . . . . . . . . . . . . . . . . Machines Dismantled . | . . . . . . . . . . . . . . . . . . . . . . . . . . . . . . . . . . . . Machines Sabotaged . | . . . . . . . . . . . . . . . . . . . . . . . . . . . . . . . . . . . . Overloaded Fab Kills . | . . . . . . . . . . . . . . . . . . . . . . . . . . . . . . . . . . . . Hacking | -11 -10 -10 -10 -8 -8 -8 -7 -7 -7 -7 -6 -6 -6 -6 -6 -6 -6 -5 -5 -5 -5 -5 -4 -4 -4 -4 -4 -3 -3 -3 -3 -2 -2 -1 -1 --------- Run | Yrd Mat Min Sub Mat Sto Gar Fac Low Low Zio Pro Fac Gar Fac Low Low Dat Pro Fac Upp Upp Zhi Pro Fac Upp Upp War Pro Res Qua Sec Res Tes Acc Com Machines Accessed 182 | . 8 1 1 4 5 4 7 1 3 1 . 13 3 16 2 . 4 . 27 3 1 4 1 14 2 . 7 . 13 7 8 3 5 5 9 Terminals 106 | . 6 . . 3 3 4 5 . . . . 8 3 10 . . . . 15 1 . . 1 9 . . . . 9 5 6 1 4 4 9 Fabricators 13 | . . . . . . . . . . . . 1 . 3 . . . . 5 . . . . 2 . . . . 1 . . 1 . . . Repair Stations 2 | . . . . . . . . . . . . . . . . . . . 1 . . . . . . . . . . 1 . . . . . Recycling Units 6 | . 2 . . 1 1 . . . . . . 1 . . . . . . . . . . . 1 . . . . . . . . . . . Scanalyzers 10 | . . . . . . . . . . . . 2 . 3 . . . . 2 . . . . . . . . . . 1 1 . 1 . . Garrison Access 16 | . . . . . 1 . 2 . . . . 1 . . . . . . 4 . . . . 2 . . . . 3 . 1 1 . 1 . Total Hacks 608 | . 24 1 3 16 15 6 13 1 9 7 . 33 7 45 4 . 20 . 97 11 1 17 6 64 8 . 15 . 54 32 29 6 18 14 32 Successful 394 | . 13 1 3 7 6 1 1 1 9 7 . 21 1 20 4 . 20 . 75 11 1 17 6 41 8 . 15 . 43 20 13 5 6 6 12 Failed 213 | . 10 . . 9 9 5 12 . . . . 12 6 25 . . . . 22 . . . . 23 . . . . 11 12 16 1 12 8 20 Catastrophic 33 | . 1 . . . 2 2 4 . . . . 2 . 3 . . . . 2 . . . . 3 . . . . 2 . 5 . 2 1 4 Database Lockouts 1 | . 1 . . . . . . . . . . . . . . . . . . . . . . . . . . . . . . . . . . Manual 236 | . 22 . . 7 8 . 1 . . . . 12 . 20 . . . . 40 . . . . 29 . . . . 32 20 12 . 10 9 14 Terminals 407 | . 20 . . 15 10 6 11 . . . . 19 7 28 . . . . 67 5 . . 6 52 . . . . 47 25 24 3 17 13 32 Fabricators 38 | . . . . . . . . . . . . 1 . 8 . . . . 16 . . . . 8 . . . . 4 . . 1 . . . Repair Stations 6 | . . . . . . . . . . . . . . . . . . . 2 . . . . . . . . . . 4 . . . . . Recycling Units 15 | . 4 . . 1 4 . . . . . . 5 . . . . . . . . . . . 1 . . . . . . . . . . . Scanalyzers 25 | . . . . . . . . . . . . 5 . 9 . . . . 6 . . . . . . . . . . 3 1 . 1 . . Garrison Access 25 | . . . . . 1 . 2 . . . . 3 . . . . . . 6 . . . . 3 . . . . 3 . 4 2 . 1 . Terminal Hacks 244 | . 2 1 3 3 2 1 1 1 9 7 . 11 1 7 4 . 20 . 35 11 1 17 6 23 8 . 15 . 21 9 5 3 4 3 10 Record 56 | . . . 3 . . . . . 7 . . 1 . . 3 . 5 . . 10 1 5 6 . 7 . 8 . . . . . . . . Part Schematic 24 | . . . . . . . . . . 7 . . . . . . 8 . 2 . . 4 . 1 . . . . 1 1 . . . . . Robot Schematic 4 | . . . . . . . . . . . . . . . . . 4 . . . . . . . . . . . . . . . . . . Robot Analysis 10 | . 1 . . . . . . . . . . . . . . . . . 2 . . 4 . 3 . . . . . . . . . . . Prototype ID Bank 14 | . . . . . . . . . . . . . . . . . 3 . 2 . . 4 . . . . 5 . . . . . . . . Open Door 13 | . . 1 . . . 1 . 1 2 . . . 1 . 1 . . . . 1 . . . . 1 . 2 . . . 1 . . . 1 Open DSF 2 | . . . . . . . . . . . . . . 2 . . . . . . . . . . . . . . . . . . . . . Branch Access Points 7 | . . . . . . . . . . . . 1 . . . . . . 1 . . . . 2 . . . . 1 . . 1 . 1 . Emergency Access Points 1 | . . . . . . . . . . . . 1 . . . . . . . . . . . . . . . . . . . . . . . Machine Index 5 | . . . . . . . . . . . . . . 1 . . . . 1 . . . . 1 . . . . 1 . 1 . . . . Terminal Index 3 | . . . . . . . . . . . . . . . . . . . . . . . . . . . . . 1 1 . . 1 . . Scanalyzer Index 1 | . . . . . . . . . . . . 1 . . . . . . . . . . . . . . . . . . . . . . . Garrison Index 1 | . . . . . . . . . . . . 1 . . . . . . . . . . . . . . . . . . . . . . . Alert Level 15 | . . . . . . . 1 . . . . 1 . 1 . . . . 6 . . . . 2 . . . . 2 . . . 1 . 1 Unreport Threat 29 | . 1 . . 2 2 . . . . . . 3 . 2 . . . . 4 . . . . 5 . . . . 2 2 2 2 . . 2 Locate Traps 10 | . . . . . . . . . . . . 1 . . . . . . 2 . . . . 1 . . . . 3 1 . . . . 2 Disarm Traps 1 | . . . . . . . . . . . . . . . . . . . . . . . . 1 . . . . . . . . . . . Reprogram Traps 1 | . . . . . . . . . . . . . . . . . . . . . . . . . . . . . 1 . . . . . . Dispatch Records 1 | . . . . . . . . . . . . . . . . . . . 1 . . . . . . . . . . . . . . . . Security Status 2 | . . . . . . . . . . . . . . . . . . . 1 . . . . . . . . . 1 . . . . . . Surveillance Status 1 | . . . . . . . . . . . . . . . . . . . . . . . . . . . . . 1 . . . . . . Patrol Status 2 | . . . . . . . . . . . . . . . . . . . . . . . . 1 . . . . . . . . . . 1 Investigation Status 2 | . . . . . . . . . . . . . . . . . . . . . . . . 2 . . . . . . . . . . . Recall Investigation 5 | . . . . . . . . . . . . . . . . . . . 3 . . . . 2 . . . . . . . . . . . Recall Extermination 2 | . . . . . . . . . . . . . . . . . . . 1 . . . . . . . . . . . . . . 1 . Hauler Manifests 6 | . . . . . . . . . . . . 1 . . . . . . 1 . . . . 1 . . . . 1 1 . . 1 . . Registered Components 3 | . . . . . . . . . . . . . . . . . . . 1 . . . . . . . . . 1 1 . . . . . Registered Prototypes 1 | . . . . . . . . . . . . . . . . . . . . . . . . . . . . . 1 . . . . . . Zone Layout 20 | . . . . 1 . . . . . . . . . 1 . . . . 7 . . . . 1 . . . . 4 2 1 . 1 1 1 Disengage Seal 2 | . . . . . . . . . . . . . . . . . . . . . . . . . . . . . . . . . . . 2 Fabricator Hacks 20 | . . . . . . . . . . . . 1 . 3 . . . . 10 . . . . 3 . . . . 2 . . 1 . . . Network Status 5 | . . . . . . . . . . . . 1 . 3 . . . . . . . . . . . . . . . . . 1 . . . Load Schematic 8 | . . . . . . . . . . . . . . . . . . . 5 . . . . 2 . . . . 1 . . . . . . Build 7 | . . . . . . . . . . . . . . . . . . . 5 . . . . 1 . . . . 1 . . . . . . Repair Station Hacks 4 | . . . . . . . . . . . . . . . . . . . 2 . . . . . . . . . . 2 . . . . . Scan Component 2 | . . . . . . . . . . . . . . . . . . . 1 . . . . . . . . . . 1 . . . . . Repair 2 | . . . . . . . . . . . . . . . . . . . 1 . . . . . . . . . . 1 . . . . . Recycling Unit Hacks 4 | . 1 . . . 1 . . . . . . 1 . . . . . . . . . . . 1 . . . . . . . . . . . Retrieve Components 4 | . 1 . . . 1 . . . . . . 1 . . . . . . . . . . . 1 . . . . . . . . . . . Scanalyzer 11 | . . . . . . . . . . . . 2 . 3 . . . . 6 . . . . . . . . . . . . . . . . Insert Component 8 | . . . . . . . . . . . . 2 . 3 . . . . 3 . . . . . . . . . . . . . . . . Analyze 3 | . . . . . . . . . . . . . . . . . . . 3 . . . . . . . . . . . . . . . . Garrison Access Hacks 14 | . . . . . 1 . . . . . . 1 . . . . . . 4 . . . . 2 . . . . 3 . 1 1 . 1 . Unlock Access 3 | . . . . . 1 . . . . . . 1 . . . . . . . . . . . . . . . . . . 1 . . . . Seal Access 11 | . . . . . . . . . . . . . . . . . . . 4 . . . . 2 . . . . 3 . . 1 . 1 . Unauthorized Hacks 97 | . 10 . . 4 2 . . . . . . 5 . 7 . . . . 18 . . . . 12 . . . . 17 9 7 . 2 2 2 Terminals 80 | . 8 . . 4 1 . . . . . . 1 . 6 . . . . 14 . . . . 11 . . . . 16 8 6 . 1 2 2 Track 11 | . . . . . . . . . . . . . . . . . . . 3 . . . . 1 . . . . 4 1 2 . . . . Assimilate 10 | . . . . . . . . . . . . . . 1 . . . . 3 . . . . 3 . . . . 2 . 1 . . . . Botnet 11 | . 2 . . 1 . . . . . . . . . . . . . . 2 . . . . 1 . . . . 1 2 . . . . 2 Operators 8 | . 1 . . . . . . . . . . . . . . . . . 1 . . . . 1 . . . . 3 1 1 . . . . Skim 40 | . 5 . . 3 1 . . . . . . 1 . 5 . . . . 5 . . . . 5 . . . . 6 4 2 . 1 2 . Fabricators 7 | . . . . . . . . . . . . . . 1 . . . . 4 . . . . 1 . . . . 1 . . . . . . Prioritize 6 | . . . . . . . . . . . . . . . . . . . 4 . . . . 1 . . . . 1 . . . . . . Liberate 1 | . . . . . . . . . . . . . . 1 . . . . . . . . . . . . . . . . . . . . . Repair Stations . | . . . . . . . . . . . . . . . . . . . . . . . . . . . . . . . . . . . . Recycling Units 7 | . 2 . . . 1 . . . . . . 4 . . . . . . . . . . . . . . . . . . . . . . . Monitor 1 | . . . . . . . . . . . . 1 . . . . . . . . . . . . . . . . . . . . . . . Reject 1 | . . . . . . . . . . . . 1 . . . . . . . . . . . . . . . . . . . . . . . Recyclers 1 | . . . . . . . . . . . . 1 . . . . . . . . . . . . . . . . . . . . . . . Mask 1 | . . . . . . . . . . . . 1 . . . . . . . . . . . . . . . . . . . . . . . Tunnel 3 | . 2 . . . 1 . . . . . . . . . . . . . . . . . . . . . . . . . . . . . . Scanalyzers 3 | . . . . . . . . . . . . . . . . . . . . . . . . . . . . . . 1 1 . 1 . . Researchers 3 | . . . . . . . . . . . . . . . . . . . . . . . . . . . . . . 1 1 . 1 . . Garrison Access . | . . . . . . . . . . . . . . . . . . . . . . . . . . . . . . . . . . . . Data Cores Recovered 6 | . . . . . . . . . . . . . . . . . . . . . . . . . . . . . 1 1 1 . . 1 2 Used . | . . . . . . . . . . . . . . . . . . . . . . . . . . . . . . . . . . . . Hacking Detections 122 | . 5 . . 4 4 3 7 . . . . 12 3 15 . . . . 17 1 . . 1 10 . . . . 10 7 6 2 4 4 7 Full Trace Events 16 | . . . . . 1 . 1 . . . . 1 1 3 . . . . 5 . . . . 2 . . . . 1 . . . . . 1 Feedback Events 1 | . . . . . . . . . . . . . . . . . . . . . . . . . . . . . . . . . . . 1 Corruption 1 | . . . . . . . . . . . . . . . . . . . . . . . . . . . . . . . . . . . 1 Feedback Blocked . | . . . . . . . . . . . . . . . . . . . . . . . . . . . . . . . . . . . . Robot Schematics Acquired 7 | . . . . . . . . . . 3 . . . . . . 4 . . . . . . . . . . . . . . . . . . Robots Built . | . . . . . . . . . . . . . . . . . . . . . . . . . . . . . . . . . . . . Authchips . | . . . . . . . . . . . . . . . . . . . . . . . . . . . . . . . . . . . . Time . | . . . . . . . . . . . . . . . . . . . . . . . . . . . . . . . . . . . . Total Robot Build Rating . | . . . . . . . . . . . . . . . . . . . . . . . . . . . . . . . . . . . . Part Schematics Acquired 41 | . . . . . . . . . . 22 . . . . . . 8 . 4 . . 4 . 1 . . . . 1 1 . . . . . Parts Built 7 | . . . . . . . . . . . . . . . . . . . 5 . . . . 1 . . . . 1 . . . . . . Authchips . | . . . . . . . . . . . . . . . . . . . . . . . . . . . . . . . . . . . . Time 388 | . . . . . . . . . . . . . . . . . . . 314 . . . . 42 . . . . 32 . . . . . . Total Part Build Rating 43 | . . . . . . . . . . . . . . . . . . . 29 . . . . 6 . . . . 8 . . . . . . Parts Repaired 2 | . . . . . . . . . . . . . . . . . . . 1 . . . . . . . . . . 1 . . . . . Time 120 | . . . . . . . . . . . . . . . . . . . 80 . . . . . . . . . . 40 . . . . . Parts Recycled . | . . . . . . . . . . . . . . . . . . . . . . . . . . . . . . . . . . . . Recycled Matter . | . . . . . . . . . . . . . . . . . . . . . . . . . . . . . . . . . . . . Retrieved Matter . | . . . . . . . . . . . . . . . . . . . . . . . . . . . . . . . . . . . . Retrieved Components 17 | . 5 . . . 9 . . . . . . 2 . . . . . . . . . . . 1 . . . . . . . . . . . Parts Scanalyzed 5 | . . . . . . . . . . . . 1 . 2 . . . . 2 . . . . . . . . . . . . . . . . Part Schematics Acquired 2 | . . . . . . . . . . . . . . . . . . . 2 . . . . . . . . . . . . . . . . Parts Damaged 3 | . . . . . . . . . . . . 1 . 2 . . . . . . . . . . . . . . . . . . . . . Bothacking | -11 -10 -10 -10 -8 -8 -8 -7 -7 -7 -7 -6 -6 -6 -6 -6 -6 -6 -5 -5 -5 -5 -5 -4 -4 -4 -4 -4 -3 -3 -3 -3 -2 -2 -1 -1 ------------ Run | Yrd Mat Min Sub Mat Sto Gar Fac Low Low Zio Pro Fac Gar Fac Low Low Dat Pro Fac Upp Upp Zhi Pro Fac Upp Upp War Pro Res Qua Sec Res Tes Acc Com Used RIF Installer . | . . . . . . . . . . . . . . . . . . . . . . . . . . . . . . . . . . . . Robots Hacked . | . . . . . . . . . . . . . . . . . . . . . . . . . . . . . . . . . . . . Non-combat . | . . . . . . . . . . . . . . . . . . . . . . . . . . . . . . . . . . . . Combat . | . . . . . . . . . . . . . . . . . . . . . . . . . . . . . . . . . . . . Robot Hacks Applied . | . . . . . . . . . . . . . . . . . . . . . . . . . . . . . . . . . . . . Relay Couplers Released 54 | . . . . . . 27 . . . . . . 21 . . . . . 4 . . . . . . . . . . . . 2 . . . Machine Destruction 46 | . . . . . . 23 . . . . . . 21 . . . . . . . . . . . . . . . . . . 2 . . . Programmers 8 | . . . . . . 4 . . . . . . . . . . . . 4 . . . . . . . . . . . . . . . . Fabnet Peak Effective % . | . . . . . . . . . . . . . . . . . . . . . . . . . . . . . . . . . . . . Robots Rewired 5 | . . . . . . . . . . . . . . . . . . . . . . . . . . . 5 . . . . . . . . Allies Hacked . | . . . . . . . . . . . . . . . . . . . . . . . . . . . . . . . . . . . . Hacks Repelled . | . . . . . . . . . . . . . . . . . . . . . . . . . . . . . . . . . . . . Allies | -11 -10 -10 -10 -8 -8 -8 -7 -7 -7 -7 -6 -6 -6 -6 -6 -6 -6 -5 -5 -5 -5 -5 -4 -4 -4 -4 -4 -3 -3 -3 -3 -2 -2 -1 -1 -------- Run | Yrd Mat Min Sub Mat Sto Gar Fac Low Low Zio Pro Fac Gar Fac Low Low Dat Pro Fac Upp Upp Zhi Pro Fac Upp Upp War Pro Res Qua Sec Res Tes Acc Com Total Allies 35 | . . . . . 10 1 . . . 2 . . 1 3 . . . . 3 . . . . 2 . . 5 . 2 . . . . . 6 Largest Group 10 | . . . . . 10 1 . . . 2 2 1 1 2 . . . . 3 . . . . 1 . . 5 . 2 . . . . . 6 Highest-Rated Group 263 | . . . . . 173 25 . . . 82 82 48 62 64 . . . . 62 . . . . 26 . . 263 . 71 . . . . . 83 Highest-Rated Ally 68 | . . . . . 29 25 . . . 51 51 48 62 32 . . . . 26 . . . . 26 . . 68 . 45 . . . . . 15 Warlord Squad Rendezvous 8 | . . . . . . . . . . . . 4 . 4 . . . . . . . . . . . . . . . . . . . . . Dakka 1 | . . . . . . . . . . . . 1 . . . . . . . . . . . . . . . . . . . . . . . Muscle 3 | . . . . . . . . . . . . 1 . 2 . . . . . . . . . . . . . . . . . . . . . Ranger 3 | . . . . . . . . . . . . 2 . 1 . . . . . . . . . . . . . . . . . . . . . Pyro 1 | . . . . . . . . . . . . . . 1 . . . . . . . . . . . . . . . . . . . . . Total Orders 1 | . . . . . . . . . . . . . . . . . . . . . . . . . . . 1 . . . . . . . . STAY 1 | . . . . . . . . . . . . . . . . . . . . . . . . . . . 1 . . . . . . . . Ally Attacks 90 | . . . . . 27 2 . . . . 9 9 . 8 . . 5 . . . . . . . . . 18 . . . . . . . 12 Total Damage 1960 | . . . . . 367 71 . . . . 257 79 . 182 . . 27 . . . . . . . . . 631 . . . . . . . 346 Kills 14 | . . . . . 2 2 . . . . 3 . . 1 . . . . . . . . . . . . 5 . . . . . . . 1 Allies Corrupted . | . . . . . . . . . . . . . . . . . . . . . . . . . . . . . . . . . . . . Allies Melted 3 | . . . . . . . . . . . . . . 1 . . . . . . . . . . . . . . . . . 2 . . . Intel | -11 -10 -10 -10 -8 -8 -8 -7 -7 -7 -7 -6 -6 -6 -6 -6 -6 -6 -5 -5 -5 -5 -5 -4 -4 -4 -4 -4 -3 -3 -3 -3 -2 -2 -1 -1 ------- Run | Yrd Mat Min Sub Mat Sto Gar Fac Low Low Zio Pro Fac Gar Fac Low Low Dat Pro Fac Upp Upp Zhi Pro Fac Upp Upp War Pro Res Qua Sec Res Tes Acc Com Robot Analysis Total 10 | . 1 . . . . . . . . . . . . . . . . . 2 . . 4 . 3 . . . . . . . . . . . Derelict Logs Recovered 18 | . . 3 . . . . . 1 2 . 2 . . . . 2 . 2 . 1 2 . 1 . 1 1 . . . . . . . . . Drone Launches 6 | . . . . . . . . . . . . 3 . . . . 3 . . . . . . . . . . . . . . . . . . Drone Recoveries 3 | . . . . . . . . . . . . 3 . . . . . . . . . . . . . . . . . . . . . . . Exploration | -11 -10 -10 -10 -8 -8 -8 -7 -7 -7 -7 -6 -6 -6 -6 -6 -6 -6 -5 -5 -5 -5 -5 -4 -4 -4 -4 -4 -3 -3 -3 -3 -2 -2 -1 -1 ------------- Run | Yrd Mat Min Sub Mat Sto Gar Fac Low Low Zio Pro Fac Gar Fac Low Low Dat Pro Fac Upp Upp Zhi Pro Fac Upp Upp War Pro Res Qua Sec Res Tes Acc Com Turns Passed 22848 | 69 1216 1136 3013 1059 1469 2148 513 194 331 465 329 810 404 898 161 225 147 73 1201 147 141 68 135 431 141 43 371 117 373 665 519 1242 658 791 1145 Spaces Moved 34116 | 23 583 633 1450 446 398 777 1341 723 685 1347 529 2427 859 2065 628 917 167 248 3422 507 491 189 497 1486 562 177 1145 534 1197 1105 884 2135 1055 1151 1333 Core . | . . . . . . . . . . . . . . . . . . . . . . . . . . . . . . . . . . . . Treads 3888 | 15 583 633 1450 18 398 777 4 . . . . . . . . . . . . . . . . . . . . . . . . . . . 10 Legs 8 | 8 . . . . . . . . . . . . . . . . . . . . . . . . . . . . . . . . . . . Wheels 428 | . . . . 428 . . . . . . . . . . . . . . . . . . . . . . . . . . . . . . . Hover 7031 | . . . . . . . . . . . . . . . . . . . . . . . . . . . . . . 823 652 2132 1042 1094 1288 Flight 22421 | . . . . . . . 1337 723 685 1347 529 2427 859 2065 628 917 167 248 3422 507 491 189 497 1486 562 177 1145 534 1197 282 . . . . . Fastest Speed 5 | 120 160 160 160 125 235 240 23 23 23 23 23 14 14 20 24 24 20 20 24 21 28 24 11 5 5 5 20 5 5 5 38 42 46 46 38 Average Speed 50 | 146 160 160 180 164 296 240 24 23 23 23 23 22 19 23 24 24 25 23 26 27 28 26 22 19 19 18 20 19 21 43 53 45 46 53 53 Slowest Speed 465 | 160 160 160 320 312 465 240 160 23 23 23 23 24 20 94 24 24 87 24 95 28 28 103 24 20 20 20 24 20 22 108 56 110 119 120 147 Overloaded Moves 308 | . . . . . . . . . . . . 12 42 . . . 27 17 . 7 . . 58 21 20 22 . 7 29 38 8 . . . . Propulsion Burnouts . | . . . . . . . . . . . . . . . . . . . . . . . . . . . . . . . . . . . . Robots Hopped 100 | . . . . . . . 38 . 1 . . 5 6 3 . . . . 14 . . . 6 7 1 1 1 . 17 . . . . . . Cave-ins Triggered 2 | . . . . . . . . . . . . . . . . . . . 1 . . . . . . . . . . . . . . . 1 Teleports 2 | . . . . . . . . . . . . . . . . . . . . . . . . . . . . . . 1 1 . . . . Spacefolds 25 | . . . . . . . . . . . . . . . . . . . . . . . . . . . . . . . 9 1 4 2 9 Microwarps 19 | . . . . . . . . . . . . . . . . . . . . . . . . . . . . . . . 14 . . 4 1 Exploration Rate (%) 65 | 3 91 97 68 38 68 84 37 83 66 85 82 46 67 51 87 91 81 41 73 64 65 61 72 52 75 31 94 82 42 75 48 66 88 39 54 Regions Visited 35 Branch Regions 23 Pre-discovered Areas 23 | . 3 1 1 . 1 . . 1 2 . 1 . . . . 2 1 . 1 1 1 3 1 1 1 . 1 . . . . . . . . Known Exits Taken 17 | . 1 1 . 1 1 . 1 . . . . 1 . 1 1 . . 1 1 1 . . 1 1 . . . 1 1 . . 1 . 1 . Unknown Exits Taken 16 | 1 . . 1 . . . . 1 1 1 1 . . . . 1 1 . . . 1 1 . . 1 1 1 . . 1 1 . 1 . . Scrap Searched 34 | . . 2 2 . . . . 4 3 3 4 . . . 2 4 . . . 3 2 . 1 . 2 1 . 1 . . . . . . . Spaces Dug 302 | . 10 . . . 1 19 7 2 . . . 16 58 24 2 . . 22 32 2 . . 6 19 2 . . . 16 7 6 4 25 16 6 Terrain Destroyed 895 | . 16 43 11 61 76 45 7 2 . . . 17 128 24 2 . . 22 32 2 . . 6 19 2 . . . 18 8 9 7 116 31 191 Melee 137 | . . . . . 1 4 7 2 . . . 15 6 24 2 . . 1 21 2 . . 6 19 2 . . . 14 6 5 . . . . Projectile 229 | . . . . 4 1 . . . . . . 2 . . . . . . . . . . . . . . . . 3 2 4 7 83 31 92 AOE 528 | . 16 43 11 57 74 41 . . . . . . 122 . . . . 21 11 . . . . . . . . . . . . . 33 . 99 Terrain Rammed 1 | . . . . . . . . . . . . . . . . . . . . . . . . . . . . . 1 . . . . . . Walls Destroyed 1 | . . . . . . . . . . . . . . . . . . . . . . . . . . . . . 1 . . . . . . Machines Disabled . | . . . . . . . . . . . . . . . . . . . . . . . . . . . . . . . . . . . . Actions | -11 -10 -10 -10 -8 -8 -8 -7 -7 -7 -7 -6 -6 -6 -6 -6 -6 -6 -5 -5 -5 -5 -5 -4 -4 -4 -4 -4 -3 -3 -3 -3 -2 -2 -1 -1 --------- Run | Yrd Mat Min Sub Mat Sto Gar Fac Low Low Zio Pro Fac Gar Fac Low Low Dat Pro Fac Upp Upp Zhi Pro Fac Upp Upp War Pro Res Qua Sec Res Tes Acc Com Total 38160 | 40 747 723 1701 655 553 939 1427 748 850 1499 731 2624 1051 2406 634 919 237 255 3643 510 494 208 507 1585 587 185 1275 543 1274 1233 760 2376 1224 1287 1730 Wait 1711 | . 59 61 117 75 7 38 16 10 149 138 199 77 78 182 . . 38 . 101 . 2 . 10 40 21 9 61 9 36 23 10 13 16 24 92 Move 33591 | 22 582 632 1449 445 397 774 1271 722 682 1346 528 2417 844 2058 627 916 166 247 3393 506 490 188 485 1471 559 174 1142 533 1165 1104 673 2132 1045 1099 1307 Hop 89 | . . . . . . . 31 . 1 . . 5 6 3 . . . . 14 . . . 5 7 1 1 1 . 14 . . . . . . Pick Up 222 | 3 16 1 20 20 19 4 7 2 1 3 . 12 6 12 . . 3 . 19 1 1 3 . 4 . . 6 . 7 14 2 11 6 13 6 Fast Attach 297 | . 2 1 2 15 9 1 9 3 . 2 . 11 1 23 1 . . . 19 . . 6 . 3 . . 16 . 4 16 17 80 24 12 20 Attach 99 | 1 . 1 5 3 5 1 11 1 . . . 3 3 2 . . 3 1 9 . . . . 2 . . . . 3 8 4 5 5 8 15 Detach 32 | . . . . 1 2 . 2 . . . . 3 3 1 1 . 1 . 1 . . . . . . . . . 1 2 . 3 4 1 6 Swap 235 | 3 8 4 24 11 19 17 6 2 4 3 1 27 6 18 . 3 3 3 17 . . 3 . 3 3 1 5 1 5 5 2 6 3 9 10 Drop 460 | 2 11 1 18 17 20 7 30 6 4 5 . 20 7 33 2 . 3 . 28 1 1 8 . 6 . . 22 . 11 20 11 90 31 23 22 Fire 844 | 9 59 16 66 64 72 63 . . . . . 6 13 . . . . 2 1 . . . . . . . 5 . 3 3 6 22 90 98 246 Melee 434 | . . . . . 1 15 44 2 8 2 3 43 19 74 3 . 20 2 41 2 . . 7 31 3 . 4 . 24 38 34 14 . . . Ram 1 | . . . . . . . . . . . . . . . . . . . . . . . . . . . . . 1 . . . . . . Kick . | . . . . . . . . . . . . . . . . . . . . . . . . . . . . . . . . . . . . Crush 22 | . 10 6 . 4 2 . . . . . . . . . . . . . . . . . . . . . . . . . . . . . . Escape Stasis 109 | . . . . . . 19 . . . . . . 65 . . . . . . . . . . 18 . . . . . . 1 . . . 6 Rewire 13 | . . . . . . . . . . . . . . . . . . . . . . . . . . . 13 . . . . . . . . Trap 1 | . . . . . . . . . 1 . . . . . . . . . . . . . . . . . . . . . . . . . . Miscellaneous . | . . . . . . . . . . . . . . . . . . . . . . . . . . . . . . . . . . . . Route ------- -11/Scrapyard -10/Materials (discovered 5 exits: *Mat x3 / *Min / Sub) -10/Mines (discovered 3 exits: *Mat x2 / *Sub) -10/Subcaves (discovered 2 exits: *Mat / *Rec) -8/Materials (discovered 4 exits: Fac x3 / *Sto) -8/Storage (discovered 2 exits: *Fac / Gar) -8/Garrison (discovered 3 exits: *Fac x3) -7/Factory -7/Lower Caves -7/Lower Caves (discovered 2 exits: *Fac / *Zio) -7/Zion -6/Proximity Caves -6/Factory (discovered 5 exits: *Fac x2 / *Low x2 / Gar) -6/Garrison (discovered 3 exits: *Fac x3) -6/Factory (discovered 6 exits: *Fac x4 / *Low x2) -6/Lower Caves -6/Lower Caves (discovered 2 exits: *Fac / *Dat) -6/Data Miner -5/Proximity Caves -5/Factory (discovered 7 exits: *Fac x3 / *Upp x2 / Ext x2) -5/Upper Caves -5/Upper Caves (discovered 2 exits: *Fac / *Zhi) -5/Zhirov -4/Proximity Caves -4/Factory (discovered 4 exits: *Res x2 / *Upp x2) -4/Upper Caves -4/Upper Caves (discovered 2 exits: Res / *War) -4/Warlord -3/Proximity Caves -3/Research (discovered 5 exits: *Res x2 / Arm / *Qua x2) -3/Quarantine -3/Section 7 (discovered 2 exits: *Res / Gar) -2/Research (discovered 3 exits: *Acc / *Tes x2) -2/Testing -1/Access -1/Command History --------- Turn | Location | Event 9 | -11/Scrapyard | Discovered new exit (range 3) 70 | -11/Scrapyard | Entered Materials 232 | -10/Materials | Discovered new exit (range 9) 304 | -10/Materials | Build established: Mutant 394 | -10/Materials | Discovered new exit (range 5) 552 | -10/Materials | Discovered new exit (range 11) 820 | -10/Materials | Discovered new exit (range 16) 916 | -10/Materials | Learned 4 Recycling zone layouts 939 | -10/Materials | Learned location of 1 exit from Recycling 950 | -10/Materials | Learned location of Mines (-9) 951 | -10/Materials | Identified exit to Subcaves 951 | -10/Materials | Learned location of 1 exit from Materials 952 | -10/Materials | Learned location of 2 exits from Materials 953 | -10/Materials | Learned location of 2 exits from Mines 954 | -10/Materials | Identified exit to Materials 954 | -10/Materials | Identified exit to Mines 1068 | -10/Materials | Central database locked down 1286 | -10/Materials | Entered Mines 1297 | -10/Mines | Met a Derelict bent on vengeance 1336 | -10/Mines | Learned location of Zion (-7) 1590 | -10/Mines | Learned Materials terminal intel 1728 | -10/Mines | Learned location of 1 exit from Materials 1787 | -10/Mines | Found the Drone Emporium 1796 | -10/Mines | Found Prototype Device 1796 | -10/Mines | Identified Thief Drone Bay 2406 | -10/Mines | Discovered exit to Subcaves (range 11) 2422 | -10/Mines | Entered Subcaves 2423 | -10/Subcaves | Identified exit to Recycling 2448 | -10/Subcaves | Ambushed by Subdweller buried in earth 2837 | -10/Subcaves | Discovered new exit (range 13) 2978 | -10/Subcaves | Shifting Twisted Machinery released Sub. Laser 2982 | -10/Subcaves | Shifting Twisted Machinery released Battle Rifle 3014 | -10/Subcaves | Core integrity fell below 50% 3885 | -10/Subcaves | Met a Zionite searching for "candidates" 3971 | -10/Subcaves | A swath of the cavern ceiling suddenly collapsed 4287 | -10/Subcaves | Visited Clippyterm 4291 | -10/Subcaves | Learned Factory trap positions 4689 | -10/Subcaves | A swath of the cavern ceiling suddenly collapsed 5141 | -10/Subcaves | Core integrity fell below 20% 5435 | -10/Subcaves | Entered Materials 5435 | -8/Materials | Evolved 4 slots: Propulsion x2, Utility x2 5436 | -8/Materials | Identified exit to Factory 5436 | -8/Materials | Identified exit to Storage 5437 | -8/Materials | Loaded intel: 12 terminal locations 5566 | -8/Materials | Lost 3 parts (1n1u1w) 6494 | -8/Materials | Entered Storage 6686 | -8/Storage | Destroyed 9 combat bots 6869 | -8/Storage | Assisted by bots powering up and referring to "LRC-V3" 6894 | -8/Storage | First assault squad dispatched 6964 | -8/Storage | Lost 9 allies 7037 | -8/Storage | Garrison activated, responded to threat 7336 | -8/Storage | Discovered exit to Factory (range 12) 7530 | -8/Storage | Identified exit to Garrison 7536 | -8/Storage | Build established: Scavenger-Mutant 7963 | -8/Storage | Entered Garrison 8017 | -8/Garrison | Triggered checkpoint 8026 | -8/Garrison | Core integrity fell below 50% 8080 | -8/Garrison | Garrison Relay disabled 8110 | -8/Garrison | Rescued a captive Derelict 8215 | -8/Garrison | Triggered checkpoint 8276 | -8/Garrison | Triggered checkpoint 8333 | -8/Garrison | Triggered checkpoint 8372 | -8/Garrison | Triggered checkpoint 8553 | -8/Garrison | Discovered exit to Factory (range 12) 8590 | -8/Garrison | Triggered checkpoint 8671 | -8/Garrison | Garrison Relay disabled 8949 | -8/Garrison | Triggered checkpoint 9082 | -8/Garrison | Garrison Relay disabled 9166 | -8/Garrison | Discovered exit to Factory (range 8) 9326 | -8/Garrison | Discovered exit to Factory (range 8) 9379 | -8/Garrison | Triggered checkpoint 9426 | -8/Garrison | Garrison Relay disabled 9432 | -8/Garrison | Garrison Relay disabled 9830 | -8/Garrison | Attempted to access garrison exit controls, blocked by remote lockdown 10111 | -8/Garrison | Entered Factory 10111 | -7/Factory | Evolved 2 slots: Propulsion x1, Utility x1 10112 | -7/Factory | Loaded intel: 121 trap records 10276 | -7/Factory | Discovered new exit (range 7) 10298 | -7/Factory | Identified exit to Lower Caves 10433 | -7/Factory | Build established: Sprinter 10624 | -7/Factory | Entered Lower Caves 10630 | -7/Lower Caves | Met a Warlord Commander 10631 | -7/Lower Caves | Learned location of Warlord (-4) 10632 | -7/Lower Caves | Warlord Commander delivered Encrypted Comm Array 10633 | -7/Lower Caves | Found Encrypted Comm Array 10788 | -7/Lower Caves | Learned Factory emergency access door positions 10788 | -7/Lower Caves | Discovered new exit (range 10) 10818 | -7/Lower Caves | Entered another Lower Caves area 10835 | -7/Lower Caves | Discovered new exit (range 15) 10876 | -7/Lower Caves | Learned Factory security intel 11114 | -7/Lower Caves | Learned Factory trap positions 11114 | -7/Lower Caves | Learned Research trap positions 11114 | -7/Lower Caves | Learned Research emergency access door positions 11114 | -7/Lower Caves | Learned Research stockpile data 11133 | -7/Lower Caves | Discovered new exit (range 5) 11149 | -7/Lower Caves | Entered Zion 11157 | -7/Zion | System corruption cleaned by Quarantine Array 11160 | -7/Zion | Discovered new exit (range 15) 11171 | -7/Zion | Gained Derelict followers 11181 | -7/Zion | Received a hallucinogenic algorithm 11254 | -7/Zion | Met Imprinter 11280 | -7/Zion | Visited the Megawrench Repair Shop 11281 | -7/Zion | Megawrench repaired 5 parts 11614 | -7/Zion | Entered Proximity Caves 11614 | -6/Proximity Caves | Accompanied by 2 allies 11693 | -6/Proximity Caves | Spotted B-75 Beast 11764 | -6/Proximity Caves | Discovered new exit (range 16) 11770 | -6/Proximity Caves | Learned Factory terminal intel 11943 | -6/Proximity Caves | Entered Factory 11943 | -6/Factory | Accompanied by 1 ally 11943 | -6/Factory | Evolved 2 slots: Propulsion x1, Utility x1 11944 | -6/Factory | Loaded intel: 82 trap records 11947 | -6/Factory | Loaded intel: 26 terminal locations 11999 | -6/Factory | Joined by Warlord Muscle squad 12000 | -6/Factory | Spotted B-75 Beast 12068 | -6/Factory | Joined by Warlord Dakka squad 12111 | -6/Factory | Identified exit to Lower Caves 12118 | -6/Factory | Discovered new exit (range 15) 12258 | -6/Factory | Build established: Derelict-Sprinter 12284 | -6/Factory | Discovered new exit (range 4) 12345 | -6/Factory | Joined by Warlord Ranger squad 12374 | -6/Factory | Joined by Warlord Ranger squad 12753 | -6/Factory | Identified exit to Garrison 12753 | -6/Factory | Entered Garrison 12795 | -6/Garrison | Triggered checkpoint 12796 | -6/Garrison | Garrison Relay disabled 12800 | -6/Garrison | Garrison Relay disabled 12833 | -6/Garrison | Found Imp. Powered Armor 12834 | -6/Garrison | Found Imp. Powered Armor 12836 | -6/Garrison | Found Imp. Powered Armor 12838 | -6/Garrison | Found Imp. Powered Armor 12839 | -6/Garrison | Found Imp. Powered Armor 12843 | -6/Garrison | Triggered checkpoint 12855 | -6/Garrison | Garrison Relay disabled 12857 | -6/Garrison | Triggered checkpoint 12863 | -6/Garrison | Discovered new exit (range 10) 12865 | -6/Garrison | Attempted to access garrison exit controls, blocked by remote lockdown 12940 | -6/Garrison | Build established: Sprinter 13004 | -6/Garrison | Discovered new exit (range 12) 13007 | -6/Garrison | Attempted to access garrison exit controls, blocked by remote lockdown 13010 | -6/Garrison | Found embedded Infiltrators 13013 | -6/Garrison | Triggered checkpoint 13051 | -6/Garrison | Garrison Relay disabled 13107 | -6/Garrison | Garrison Relay disabled 13114 | -6/Garrison | Triggered checkpoint 13119 | -6/Garrison | Rescued a captive Derelict 13125 | -6/Garrison | Rescued a captive Derelict 13145 | -6/Garrison | Triggered checkpoint 13155 | -6/Garrison | Discovered new exit (range 11) 13157 | -6/Garrison | Entered Factory 13186 | -6/Factory | Joined by Warlord Muscle squad 13236 | -6/Factory | Discovered exit to Lower Caves (range 10) 13242 | -6/Factory | Identified exit to DSF 13459 | -6/Factory | Joined by Warlord Pyro squad 13555 | -6/Factory | Discovered new exit (range 13) 13582 | -6/Factory | Joined by Warlord Muscle squad 13753 | -6/Factory | Joined by Warlord Ranger squad 13760 | -6/Factory | Discovered new exit (range 10) 13857 | -6/Factory | Search patrols dispatched 13964 | -6/Factory | Learned 2 Upper Caves zone layouts 14028 | -6/Factory | Learned 2 Lower Caves zone layouts 14047 | -6/Factory | Identified exit to Factory 14054 | -6/Factory | Learned location of 1 exit from Lower Caves 14055 | -6/Factory | Entered Lower Caves 14056 | -6/Lower Caves | Identified exit to Lower Caves 14057 | -6/Lower Caves | Build established: Hacker-Sprinter 14216 | -6/Lower Caves | Entered another Lower Caves area 14217 | -6/Lower Caves | Encountered a Warlord checkpoint 14254 | -6/Lower Caves | Spotted B-75 Beast 14276 | -6/Lower Caves | Discovered exit to Factory (range 6) 14304 | -6/Lower Caves | Learned location of Extension (-5) 14436 | -6/Lower Caves | Discovered new exit (range 8) 14441 | -6/Lower Caves | Entered Data Miner 14441 | -6/Data Miner | Discovered new exit (range 6) 14446 | -6/Data Miner | Met Data Miner 14452 | -6/Data Miner | Learned location of Section 7 (-3) 14454 | -6/Data Miner | Received God Mode back door access code from Data Miner 14458 | -6/Data Miner | Destroyed Data Miner 14462 | -6/Data Miner | Data Conduit disabled 14534 | -6/Data Miner | Found Prototype Hackware 14535 | -6/Data Miner | Found Prototype Hackware 14581 | -6/Data Miner | Found Prototype Hackware 14588 | -6/Data Miner | Entered Proximity Caves 14596 | -5/Proximity Caves | Spotter reported a threat 14596 | -5/Proximity Caves | Spotter reported a threat 14600 | -5/Proximity Caves | Lost 3 allies 14642 | -5/Proximity Caves | Discovered exit to Factory (range 15) 14643 | -5/Proximity Caves | Learned 4 Factory zone layouts 14648 | -5/Proximity Caves | Learned location of 1 exit from Factory 14661 | -5/Proximity Caves | Entered Factory 14661 | -5/Factory | Evolved 2 slots: Utility x2 14662 | -5/Factory | Identified exit to Upper Caves 14662 | -5/Factory | Identified Quantum Router 14663 | -5/Factory | Identified exit to Factory 14663 | -5/Factory | Identified System Mapper 14664 | -5/Factory | Identified Deep Network Scanner 14716 | -5/Factory | Identified exit to Extension 14917 | -5/Factory | Discovered exit to Factory (range 10) 14982 | -5/Factory | Build established: Wizard-Sprinter 15012 | -5/Factory | Learned Research scanalyzer intel 15046 | -5/Factory | Learned 2 Upper Caves zone layouts 15046 | -5/Factory | Lost 3 allies 15083 | -5/Factory | Learned location of 1 exit from Upper Caves 15083 | -5/Factory | Fabricated Exp. Utility Shielding? 15089 | -5/Factory | Learned 2 Upper Caves zone layouts 15107 | -5/Factory | Learned location of 1 exit from Testing 15134 | -5/Factory | Learned 2 Proximity Caves zone layouts 15218 | -5/Factory | Fabricated Cld. Nuclear Pulse Thruster (x1) 15272 | -5/Factory | Discovered exit to Factory (range 16) 15294 | -5/Factory | Fabricated Cld. Nuclear Pulse Thruster? 15561 | -5/Factory | Fabricated Cld. Nuclear Pulse Thruster? 15622 | -5/Factory | Fabricated Cld. Nuclear Pulse Thruster (x1) 15638 | -5/Factory | Spotted B-75 Beast 15685 | -5/Factory | Crushed by falling debris 15815 | -5/Factory | Repaired Exp. Utility Shielding? 15862 | -5/Factory | Entered Upper Caves 15863 | -5/Upper Caves | Identified exit to Upper Caves 15913 | -5/Upper Caves | Learned Extension terminal intel 15985 | -5/Upper Caves | Learned Factory garrison access intel 16008 | -5/Upper Caves | Learned Extension terminal intel 16008 | -5/Upper Caves | Learned Research stockpile data 16009 | -5/Upper Caves | Entered another Upper Caves area 16020 | -5/Upper Caves | Discovered exit to Factory (range 15) 16055 | -5/Upper Caves | Learned location of Armory (-3) 16096 | -5/Upper Caves | Learned Factory stockpile data 16125 | -5/Upper Caves | Discovered new exit (range 5) 16150 | -5/Upper Caves | Entered Zhirov 16150 | -5/Zhirov | Discovered new exit (range 3) 16156 | -5/Zhirov | Met Zhirov 16161 | -5/Zhirov | Learned location of Quarantine (-3) 16161 | -5/Zhirov | Learned location of Testing (-2) 16161 | -5/Zhirov | Learned location of Command (-1) 16165 | -5/Zhirov | Zhirov requested help retrieving the SGEMP Prototype 16171 | -5/Zhirov | Found Alien Artifact 16171 | -5/Zhirov | Identified Integrated Reactor 16171 | -5/Zhirov | Installed Integrated Reactor, increased core energy generation (+10) 16198 | -5/Zhirov | Found Alien Artifact 16218 | -5/Zhirov | Entered Proximity Caves 16228 | -4/Proximity Caves | Acquired the password to a Derelict Tinkerer's latest research 16238 | -4/Proximity Caves | Learned Research stockpile data 16280 | -4/Proximity Caves | Caught by Unaware searching for contraband prototypes 16327 | -4/Proximity Caves | Learned Research terminal intel 16327 | -4/Proximity Caves | Learned Extension garrison access intel 16353 | -4/Proximity Caves | Discovered exit to Factory (range 6) 16353 | -4/Proximity Caves | Entered Factory 16353 | -4/Factory | Evolved 2 slots: Propulsion x1, Utility x1 16355 | -4/Factory | Loaded intel: 4 garrison access locations 16369 | -4/Factory | Identified exit to Upper Caves 16430 | -4/Factory | Found Prototype Hackware 16477 | -4/Factory | Fabricated Cld. Nuclear Pulse Thruster? 16582 | -4/Factory | Learned Research emergency access door positions 16591 | -4/Factory | Spotted B-86 Titan 16595 | -4/Factory | Discovered new exit (range 7) 16648 | -4/Factory | Learned Testing emergency access door positions 16753 | -4/Factory | Learned location of 1 exit from Armory 16753 | -4/Factory | Discovered new exit (range 9) 16784 | -4/Factory | Entered Upper Caves 16828 | -4/Upper Caves | Learned Armory garrison access intel 16828 | -4/Upper Caves | Learned Research garrison access intel 16828 | -4/Upper Caves | Learned Extension stockpile data 16919 | -4/Upper Caves | Discovered new exit (range 14) 16923 | -4/Upper Caves | Attacked by a delusional Derelict stockpiling parts 16925 | -4/Upper Caves | Entered another Upper Caves area 16926 | -4/Upper Caves | Identified exit to Research 16929 | -4/Upper Caves | Learned Research emergency access door positions 16967 | -4/Upper Caves | Discovered new exit (range 7) 16968 | -4/Upper Caves | Entered Warlord 16975 | -4/Warlord | System corruption cleaned by Quarantine Array 17139 | -4/Warlord | Warlord's base attacked by MAIN.C 17144 | -4/Warlord | Found Prototype Device 17144 | -4/Warlord | Identified Minesniffer Drone Bay 17151 | -4/Warlord | Learned 4 Armory zone layouts 17151 | -4/Warlord | Learned 4 Testing zone layouts 17151 | -4/Warlord | Learned 4 Command zone layouts 17151 | -4/Warlord | Learned Testing security intel 17151 | -4/Warlord | Learned Research recycling unit intel 17156 | -4/Warlord | Met Warlord 17203 | -4/Warlord | Found Prototype Device 17203 | -4/Warlord | Identified Exp. Cloaking Device 17210 | -4/Warlord | Found Prototype Processor 17210 | -4/Warlord | Identified Exp. Target Analyzer 17258 | -4/Warlord | Found Prototype Energy Gun 17258 | -4/Warlord | Identified Vortex Shotgun 17261 | -4/Warlord | Found Prototype Launcher 17261 | -4/Warlord | Identified Vortex Catalyst Activator 17267 | -4/Warlord | Found Vortex Shotgun 17333 | -4/Warlord | Opened side exit 17337 | -4/Warlord | Discovered new exit (range 9) 17338 | -4/Warlord | Lost 4 allies 17339 | -4/Warlord | Entered Proximity Caves 17349 | -3/Proximity Caves | Spotted B-86 Titan 17426 | -3/Proximity Caves | Spotter reported a threat 17448 | -3/Proximity Caves | Discovered exit to Research (range 8) 17456 | -3/Proximity Caves | Entered Research 17456 | -3/Research | Evolved 2 slots: Power x1, Utility x1 17457 | -3/Research | Loaded intel: 88 trap records 17460 | -3/Research | Loaded intel: 24 terminal locations 17461 | -3/Research | Loaded intel: 4 recycling unit locations 17461 | -3/Research | Identified Exp. Hacking Suite 17462 | -3/Research | Loaded intel: 6 scanalyzer locations 17463 | -3/Research | Loaded intel: 4 garrison access locations 17494 | -3/Research | Identified exit to Armory 17494 | -3/Research | Identified exit to Quarantine 17532 | -3/Research | Fabricated Adv. Powered Armor (x1) 17598 | -3/Research | Spotted B-86 Titan 17621 | -3/Research | Spotted B-86 Titan 17639 | -3/Research | Learned Research stockpile data 17690 | -3/Research | Discovered new exit (range 15) 17696 | -3/Research | Learned 8 Access zone layouts 17745 | -3/Research | Learned 4 Testing zone layouts 17776 | -3/Research | Discovered new exit (range 10) 17782 | -3/Research | Learned Research recycling unit intel 17811 | -3/Research | Learned Quarantine security intel 17817 | -3/Research | Spotted B-90 Cyclops 17829 | -3/Research | Entered Quarantine 17850 | -3/Quarantine | Found Alien Energy Cannon 17877 | -3/Quarantine | Discovered new exit (range 17) 17901 | -3/Quarantine | Found Alien Artifact 18028 | -3/Quarantine | Repaired Exp. Utility Shielding 18157 | -3/Quarantine | Found Alien Artifact 18220 | -3/Quarantine | Identified Core Reset Matrix 18220 | -3/Quarantine | Identified Core Cannon 18220 | -3/Quarantine | Identified Subatomic Replicator 18220 | -3/Quarantine | Identified Transdimensional Reconstructor 18220 | -3/Quarantine | Used Core Reset Matrix 18224 | -3/Quarantine | Detected hypermatrix surge 18224 | -3/Quarantine | Sensed 11 artifacts in vicinity 18345 | -3/Quarantine | Found Terrabomb 18356 | -3/Quarantine | Found Terrabomb 18377 | -3/Quarantine | Used Terrabomb 18419 | -3/Quarantine | Build established: Hacker-Mutant 18431 | -3/Quarantine | Found Hpw. Transdimensional Reconstructor 18438 | -3/Quarantine | Found Dimensional Node Initializer 18443 | -3/Quarantine | Found Hpw. Transdimensional Reconstructor 18443 | -3/Quarantine | Warped through subspace 18455 | -3/Quarantine | Spotted Fortress 18492 | -3/Quarantine | Discovered new exit (range 6) 18494 | -3/Quarantine | Entered Section 7 18495 | -3/Section 7 | Sensed 22 artifacts in vicinity 18501 | -3/Section 7 | Found Spacefold Activator 18577 | -3/Section 7 | Found Integrated Dissipator 18577 | -3/Section 7 | Installed Integrated Dissipator, increased core heat dissipation (+20) 18581 | -3/Section 7 | Spotted B-86 Titan 18689 | -3/Section 7 | Initialized slip node 18706 | -3/Section 7 | Found Microwarp Drive 18807 | -3/Section 7 | Lost 3 parts (3u) 18817 | -3/Section 7 | Spotted S7 Guard 18831 | -3/Section 7 | Spotted S7 Guard 18836 | -3/Section 7 | Found Core Membrane 18836 | -3/Section 7 | Installed Core Membrane, gained immunity to corruption 18848 | -3/Section 7 | Spotted S7 Guard 18849 | -3/Section 7 | Core integrity fell below 50% 18850 | -3/Section 7 | Found Integrated Thermoelectric Network 18850 | -3/Section 7 | Installed Integrated Thermoelectric Network, gained heat-energy exchange potential 18855 | -3/Section 7 | Spotted B-99 Colossus 18868 | -3/Section 7 | Found Integrated Reactor 18868 | -3/Section 7 | Installed Integrated Reactor, increased core energy generation (+10) 18870 | -3/Section 7 | Found Integrated Reactor 18870 | -3/Section 7 | Installed Integrated Reactor, increased core energy generation (+10) 18891 | -3/Section 7 | Found LRC Inertial Stabilizer 18891 | -3/Section 7 | Installed LRC Inertial Stabilizer, increased mass support (+10) 18913 | -3/Section 7 | Found Integrated Reactor 18913 | -3/Section 7 | Installed Integrated Reactor, increased core energy generation (+10) 18934 | -3/Section 7 | Warped through subspace to slip node 18964 | -3/Section 7 | Spotted Alpha 7 18964 | -3/Section 7 | Spotted Alpha 7 18972 | -3/Section 7 | Identified exit to Garrison 18974 | -3/Section 7 | Core integrity fell below 20% 19012 | -3/Section 7 | Discovered new exit (range 3) 19013 | -3/Section 7 | Entered Research 19013 | -2/Research | Warlord forces began assault on 0b10 19013 | -2/Research | Evolved 2 slots: Power x1, Propulsion x1 19038 | -2/Research | Distinguished unit "Grunt Murderers" dispatched to help 19062 | -2/Research | Identified exit to Testing 19123 | -2/Research | Research machine network offline 19227 | -2/Research | Build established: Alien-Mutant 19298 | -2/Research | Found Unknown Device 19298 | -2/Research | Identified Quantum Capacitor 19359 | -2/Research | Discovered new exit (range 10) 19484 | -2/Research | Met up with Warlord 19589 | -2/Research | Spotted Striker 19590 | -2/Research | Destroyed Striker 19625 | -2/Research | Lost 4 allies 19820 | -2/Research | Found Prototype Processor 19827 | -2/Research | Identified Exp. Core Analyzer 19877 | -2/Research | Spotted Striker 19920 | -2/Research | Destroyed Striker 19971 | -2/Research | Lost 10 allies 20067 | -2/Research | Found Prototype Processor 20067 | -2/Research | Identified Exp. Armor Integrity Analyzer 20073 | -2/Research | Found Exp. Armor Integrity Analyzer 20120 | -2/Research | Spotted B-90 Cyclops 20225 | -2/Research | Spotted Striker 20240 | -2/Research | Found Prototype Processor 20240 | -2/Research | Identified Exp. Targeting Computer 20246 | -2/Research | Warlord invited to help at Command 20255 | -2/Research | Entered Testing 20272 | -2/Testing | Lost 6 allies 20275 | -2/Testing | Found Prototype Protection 20275 | -2/Testing | Identified Lgt. Regenerative Plating 20279 | -2/Testing | Found Prototype Protection 20279 | -2/Testing | Identified SHELL Armor 20360 | -2/Testing | Found Prototype Device 20360 | -2/Testing | Identified Exp. Shock Absorption System 20374 | -2/Testing | Found Exp. Shock Absorption System 20422 | -2/Testing | Spotted Striker 20423 | -2/Testing | Spotted Striker 20542 | -2/Testing | Found Prototype Device 20542 | -2/Testing | Identified Exp. Thermal Shield 20574 | -2/Testing | Discovered new exit (range 4) 20858 | -2/Testing | Found Prototype Hackware 20913 | -2/Testing | Entered Access 20913 | -1/Access | Evolved 2 slots: Utility x2 20948 | -1/Access | Identified System Mapper 21000 | -1/Access | Spotted B-99 Colossus 21163 | -1/Access | Search patrols dispatched 21267 | -1/Access | Identified exit to Command 21595 | -1/Access | Found Quantum Capacitor 21663 | -1/Access | First assault squad dispatched 21701 | -1/Access | Spotted B-99 Colossus 21701 | -1/Access | Spotted B-99 Colossus 21704 | -1/Access | Entered Command 21749 | -1/Command | Build established: Hacker-Mutant 21991 | -1/Command | First assault squad dispatched 22174 | -1/Command | Disengaged cave seal 22174 | -1/Command | Derelicts emerged from the dark tunnel 22174 | -1/Command | Welcomed Warlord to Command 22201 | -1/Command | Destroyed 10 combat bots 22288 | -1/Command | Lost 4 allies 22294 | -1/Command | Destroyed 9 combat bots 22432 | -1/Command | Lost 5 allies 22463 | -1/Command | Disengaged cave seal 22463 | -1/Command | Derelicts emerged from the dark tunnel 22605 | -1/Command | Spotted M Guard 22606 | -1/Command | Spotted Combat Programmer 22606 | -1/Command | Spotted Combat Programmer 22615 | -1/Command | Spotted M Guard 22617 | -1/Command | Warlord commented on Warlord statues 22651 | -1/Command | Destroyed M Guard 22653 | -1/Command | Found Prototype Reactor 22653 | -1/Command | Identified Zero-point Reactor 22655 | -1/Command | Lost 3 parts (2u1w) 22669 | -1/Command | Lost 6 allies 22671 | -1/Command | Destroyed Combat Programmer 22696 | -1/Command | High security lockdown imminent 22696 | -1/Command | Destroyed M Guard 22696 | -1/Command | All MAIN.C guards destroyed 22697 | -1/Command | Build established: Alien-Mutant 22719 | -1/Command | Met MAIN.C 22722 | -1/Command | 0b10 Conduit disabled 22741 | -1/Command | Destroyed MAIN.C Shell 22742 | -1/Command | Core integrity fell below 50% 22742 | -1/Command | MAIN.C activated Command garrisons 22772 | -1/Command | Crushed by falling debris 22775 | -1/Command | Emitted hypermatrix ping 22780 | -1/Command | Assembled emerged from beneath the floor 22788 | -1/Command | Spotted B-99 Colossus 22793 | -1/Command | Core integrity fell below 20% 22814 | -1/Command | Lost 6 allies 22819 | -1/Command | Lost 13 parts (3p3n5u2w) 22820 | -1/Command | Found SHELL Armor 22824 | -1/Command | Found Zero-point Reactor 22828 | -1/Command | Found Prototype Reactor 22828 | -1/Command | Identified Vortex Chain Reactor 22849 | -1/Command | Destroyed by MAIN.C with Omega Cannon Last Messages --------------- 22834_ Slug penetrates Reinforced Barrier. 22835_ Core Membrane filtered system corruption (1). 22836_ Acquired Prototype Ballistic Cannon. 22836_ Identified Graviton Cannon. 22837_ Slug penetrates Reinforced Barrier. 22838_ P-80 Master destroyed. 22838_ Core Membrane filtered system corruption (1). 22839_ Critical hit (Destroy). 22840_ Core Membrane filtered system corruption (1). 22843_ Acquired Graviton Cannon. 22844_ Core Membrane filtered system corruption (1). 22844_ MAIN.C knocked back. 22845_ P-80 Master resets P-80 Master, system corruption cleaned. 22845_ Core Membrane filtered system corruption (1). 22847_ Acquired 17 matter. 22847_ Activated siege mode. 22847_ MAIN.C suffers critical hit (Blast). 22847_ Destroyed Unknown Processor. 22848_ Slug penetrates Reinforced Barrier. 22849_ Lrg. Storage Unit destroyed. Map ----- +----------------------------------------------------+ | ?????????????????????????????????????????????????? | | ?????????????????????????????????????????????????? | | ?????????????????????????????????????????????????? | | ?????????????????????????????????????????????????? | | ?????????????????????????????????????????????????? | | ?????????????????????????????????????????????????? | | ?????????????????????????????????????????????????? | | ?????????????????????????????????????????????????? | | ?????????????????????????????????????????????????? | | ?????????????????????????????????????????????????? | | ?????????????????????????????????????????????????? | | ?????????????????????????????????????????????????? | | ?????????????????????????????????????????????????? | | ?????????????????????????????????????????????????? | | ?????????????????????????????????????????????????? | | ?????????????????????????????????????????????????? | | ?????????????????????????????????????????????????? | | ?????????????????????????????????????????????????? | | ?????????????????????????????????????????????????? | | ?????????????##+##"##############????????????????? | | ???????H?? #????????????????? | | ?????????? #????????????????? | | ?????????????? ############ p ##????????????????? | | ?????????????? # ####!x ##????????????????? | | ?????????????? + # ]Mggp #????????????????? | | ?????????????? # ] #@]p[ lp#????????????????? | | ?????????????? # #!!pppg=#????????????????? | | ?????????????? # #!!!p *=#????????????????? | | ?????????????? # #########????????????????? | | ?????????????# # #????????????????????????? | | ?????????????# # "T" #????????????????????????? | | ?????????????# # """ #????????????????????????? | | ?????????????# # #????????????????????????? | | ??????????#+## # #????????????????????????? | | ??????????# ####+####????????????????????????? | | ??????????# #??# #???????????????????????????? | | ???????????? #??# #???????????????????????????? | | ???????#######+#####+#???????????????????????????? | | ???????# #???????????????????????????? | | ???????# #???????????????????????????? | | ???????# #???????????????????????????? | | ???????# #???????????????????????????? | | ???????# ! """Y""" #????????????????############ | | ???????# """"""" #??????????????? """" | | ?????#################??????????????? "" | | ?????# #?????????????#""""" "" | | ?????# #?????????????#"""""""""" | | ?????# #??????????????" " """ | | ?????# #?????????????#"" """""" | | ?????# #?????????????#"" "" """ | +----------------------------------------------------+ Best States ------------- Heat Dissipation 72 Coolant Potential 65 Energy Generation 123 Energy Capacity 1440 Matter Stores 300 Matter Capacity 300 Sight Range 16 Terrain Scan Density 10 ECM Strength 1 Jamming Range 14 Cloak Strength 3 Additional Mass Support 16 Base Temperature (-) 200 Armor Coverage 900 Utility Shielding 90 Weapon Shielding 66 Point Defense Rating 480 Melee Speed Boost 20 Evasion (%) 81 Targeting Accuracy 28 Melee Accuracy 24 Armor Integrity Analysis 50 Recoil Reduction 4 Salvage Targeting 2 Offensive Hacking 61 Defensive Hacking 35 Item Schematics ----------------- None Robot Schematics ------------------ None Fabricated ------------ Exp. Utility Shielding | x1 | -5/Factory Cld. Nuclear Pulse Thruster | x1 | -5/Factory Cld. Nuclear Pulse Thruster | x1 | -5/Factory Cld. Nuclear Pulse Thruster | x1 | -5/Factory Cld. Nuclear Pulse Thruster | x1 | -5/Factory Cld. Nuclear Pulse Thruster | x1 | -4/Factory Adv. Powered Armor | x1 | -3/Research Alien Tech Used ----------------- Integrated Reactor Core Reset Matrix Terrabomb High-powered Transdimensional Reconstructor Integrated Dissipator Dimensional Node Initializer Spacefold Activator Microwarp Drive Core Membrane Integrated Thermoelectric Network LRC Inertial Stabilizer Transdimensional Reconstructor Core Cannon Achievements -------------- None Challenges ------------ None Game ------ Seed StorageGammaAirjet Manual? 0 Play Time 07:21:07 Cumulative 352.0 hours Start 2024.08.17 @ 17:31:48 End 2024.08.18 @ 16:14:06 Sessions 4 Manual Loads 0 Difficulty Rogue Special Mode None Game No. 128 Rogue 126 Adventurer 2 Explorer 0 Win Type - Total 16 Types 6/0/8/1/0/0/0/1/0 Lore% 72 Gallery% 84 Achievement% 75 Wizard Run 0 Options --------- Layout 0 ASCII 0 Keyboard 0 Movement Numpad Keybinds 0 Fullscreen 2 Font 24/Smallcaps Map View 76x50 Zoom Use 0% Tactical HUD 1 Map Filters NONE Filters NONE Steam 1 RUN: 44c548f2-048a-4650-a6a0-74302be108f1